Cogmind - Beta 16 @@@ ROGUE MODE // 2025.11.19 @ 00:43:36 Player: lvl5hm Result: Destroyed by Superfortress with Enhanced Hardcell Cannon Performance ------------- Evolutions (8) 4000 Regions Visited (28) 5600 Robots Destroyed (181) 905 Value Destroyed (7345) 7345 Prototype IDs (121) 2420 Alien Tech Used (3) 600 Bonus (8866) 8866 TOTAL SCORE: 29736 Bonus ------- High Alert Combat Kills 1254 Follower Combat Kills 772 Delivered SUBCON Basin 2000 Registered with UFD 300 Met Optimus in HQ 500 Met Data Miner 300 Met Zhirov 300 Found Hidden Lab 3000 Met Optimus at Protoforge 1000 Friendly Fire -560 Cogmind --------- Core Integrity 0/1450 Matter 86/300 Energy 100/100 System Corruption 12% Temperature Cool (0) Movement Core (50) Location -2/Protoforge Parts ------- > --- POWER (2) -------- (None) > --- PROPULSION (8) --- (None) > --- UTILITY (11) ----- (None) > --- WEAPON (2) ------- (None) > --- INVENTORY (5) ---- Long-range Sensor Array Heavy Regenerative Plating Concept Plasma Driver Plasma Sword Peak State ------------ > --- POWER ------------ Micro Antimatter Reactor Hybrid Graviton Reactor > --- PROPULSION ------- Nuclear Pulse Array Nuclear Pulse Array Cooled Q-thruster Experimental Surge Thruster Experimental Surge Thruster Experimental Surge Thruster > --- UTILITY ---------- 2N-1CE's Frost Array Large Storage Unit Experimental Optical Array Long-range Sensor Array Experimental Signal Interpreter Experimental Targeting Computer Experimental Core Analyzer Experimental Utility Shielding Advanced Hacking Suite Deep Network Scanner Advanced System Shield > --- WEAPON ----------- Tri-rail Accelerator > --- INVENTORY -------- Cooled Nuclear Pulse Thruster Cooled Nuclear Pulse Thruster Concept NT7 Matterbank Weapon Mount Advanced Transmission Jammer Heavy Regenerative Plating Crosscalibrator Transdimensional Reconstructor Enhanced Nova Cannon Fusion Bomb Launcher Plasma Sword [Rating: 184] Favorites ----------- Power Subdweller Power Source Engine Subdweller Power Source Power Core Light Fission Core Reactor Micro Antimatter Reactor Propulsion Nuclear Pulse Array Treads Light Treads Hover Unit Combat Airjet Flight Unit Nuclear Pulse Array Utility Large Storage Unit Device Deep Structural Scanner Storage Large Storage Unit Processor Rainbow Chip Hackware Advanced Hacking Suite Protection Experimental Utility Shielding Weapon Slug Cannon Energy Gun Medium Laser Energy Cannon Subdweller Beam Cannon Ballistic Gun Subdweller Machine Gun Ballistic Cannon Slug Cannon Launcher Fusion Bomb Launcher Special Weapon Improved Remote Datajack Impact Weapon Powered Hammer Slashing Weapon Power Sword Build | -11 -10 -10 -8 -8 -6 -6 -6 -6 -6 -6 -5 -5 -5 -5 -5 -5 -5 -4 -4 -4 -4 -4 -3 -3 -3 -2 -2 -2 ------- Run | Yrd Mat Sub Rec Scr Fac Was Fac Low Low Dat Pro Fac Was Fac Upp Upp Zhi Pro Fac Was Fac Ext Res Arm Lab Res Tes Frg Slots Evolved 16 | . . . . . 8 . . . . . . 2 . . . . . . 2 . . . 2 . . 2 . . Power 1 | . . . . . . . . . . . . . . . . . . . 1 . . . . . . . . . Propulsion 6 | . . . . . 3 . . . . . . . . . . . . . 1 . . . 1 . . 1 . . Utility 9 | . . . . . 5 . . . . . . 2 . . . . . . . . . . 1 . . 1 . . Weapon . | . . . . . . . . . . . . . . . . . . . . . . . . . . . . . Parts Attached 215 | 7 8 13 2 8 21 . 8 5 . 2 3 30 . 14 . . 4 2 22 . 3 4 15 3 3 11 8 19 Power 34 | 1 3 4 . 1 3 . 1 1 . . . 2 . 4 . . 1 1 2 . . . 3 . . 3 1 3 Engine 14 | 1 3 4 . . 3 . . . . . . 1 . 1 . . . . . . . . . . . 1 . . Core 10 | . . . . 1 . . 1 1 . . . 1 . 3 . . . 1 2 . . . . . . . . . Reactor 10 | . . . . . . . . . . . . . . . . . 1 . . . . . 3 . . 2 1 3 Propulsion 50 | 2 1 1 2 3 6 . . 3 . . . 7 . 2 . . . . 8 . . . 5 . . 3 2 5 Treads 6 | 2 1 1 2 . . . . . . . . . . . . . . . . . . . . . . . . . Leg . | . . . . . . . . . . . . . . . . . . . . . . . . . . . . . Wheel . | . . . . . . . . . . . . . . . . . . . . . . . . . . . . . Hover 11 | . . . . 3 6 . . . . . . 2 . . . . . . . . . . . . . . . . Flight 33 | . . . . . . . . 3 . . . 5 . 2 . . . . 8 . . . 5 . . 3 2 5 Utility 102 | 2 2 5 . 1 9 . 7 1 . 2 2 17 . 7 . . 2 1 11 . 3 4 7 1 1 5 4 8 Device 42 | 1 1 1 . . 3 . 2 . . 1 . 7 . 5 . . . 1 4 . 1 3 5 1 . 1 2 3 Storage 10 | 1 1 . . . 1 . . . . . . . . 1 . . 1 . 2 . 1 . 1 . . . . 1 Processor 16 | . . 1 . 1 1 . 3 . . . 1 . . . . . . . 4 . 1 1 . . . 1 . 2 Hackware 19 | . . . . . 3 . 1 1 . . 1 8 . . . . . . 1 . . . . . . 3 1 . Protection 15 | . . 3 . . 1 . 1 . . 1 . 2 . 1 . . 1 . . . . . 1 . 1 . 1 2 Artifact . | . . . . . . . . . . . . . . . . . . . . . . . . . . . . . Weapon 29 | 2 2 3 . 3 3 . . . . . 1 4 . 1 . . 1 . 1 . . . . 2 2 . 1 3 Energy Gun 4 | 2 . . . . . . . . . . . . . . . . . . . . . . . . 2 . . . Energy Cannon 4 | . . 1 . . 1 . . . . . . . . . . . . . . . . . . 1 . . . 1 Ballistic Gun 2 | . 1 1 . . . . . . . . . . . . . . . . . . . . . . . . . . Ballistic Cannon 7 | . . 1 . . 2 . . . . . 1 1 . 1 . . . . . . . . . 1 . . . . Launcher 1 | . . . . . . . . . . . . . . . . . . . . . . . . . . . . 1 Special Weapon 4 | . 1 . . 1 . . . . . . . 1 . . . . 1 . . . . . . . . . . . Impact Weapon 2 | . . . . 1 . . . . . . . 1 . . . . . . . . . . . . . . . . Slashing Weapon 5 | . . . . 1 . . . . . . . 1 . . . . . . 1 . . . . . . . 1 1 Piercing Weapon . | . . . . . . . . . . . . . . . . . . . . . . . . . . . . . Special Melee Weapon . | . . . . . . . . . . . . . . . . . . . . . . . . . . . . . Unidentified Prototypes 37 | . . . . . 1 . . 1 . . . 3 . 1 . . 4 . 6 . . . 2 . 4 2 5 8 Corrupted Parts 1 | . . . . . . . . . . . . . . 1 . . . . . . . . . . . . . . System Corruption 5 | . . . . . . . . . . . . . . 5 . . . . . . . . . . . . . . Parts Lost 51 | . . 2 . . 5 . 7 1 1 . 2 3 . 3 . . . . 1 . . 2 2 1 . 5 . 16 Power 7 | . . . . . 1 . 1 . . . . . . . . . . . . . . 1 1 . . 1 . 2 Propulsion 24 | . . 1 . . 1 . 4 . . . 2 2 . 1 . . . . 1 . . . . 1 . 2 . 9 Utility 17 | . . 1 . . 1 . 2 1 1 . . 1 . 2 . . . . . . . 1 . . . 2 . 5 Weapon 3 | . . . . . 2 . . . . . . . . . . . . . . . . . 1 . . . . . Highest Loss Streak 8 | . . 1 . . 4 . 3 1 1 . 1 3 . 1 . . . . 1 . . 2 1 1 . 4 . 8 To Critical Strikes . | . . . . . . . . . . . . . . . . . . . . . . . . . . . . . Average Backups 11 | 1 11 13 9 14 13 15 14 11 4 3 4 4 4 8 9 9 8 9 9 10 9 8 8 13 9 12 12 11 Power . | . . 1 . . . 2 1 . . . . . . . 1 1 1 1 . . . . . 1 1 1 1 . Propulsion 1 | . 3 3 . 1 2 2 1 . . . . . 1 1 2 2 2 2 1 2 2 2 1 . . . 1 1 Utility 5 | . 4 6 5 8 6 7 6 5 3 2 3 2 2 5 4 4 4 4 5 6 5 4 5 8 2 5 5 4 Weapon 2 | . 1 2 3 3 2 2 4 5 1 1 1 . 1 1 1 1 1 1 . 1 1 1 1 2 4 4 4 3 Tool/Special . | . . . . . . . . . . . . . . . . . . . . . . . . . . . . . Unused Backups 53 | . 2 7 2 11 2 . 2 6 1 . . 6 . 2 . . 1 . 5 . 1 . 2 . . . 3 . Power 4 | . . . . 1 . . . . . . . 2 . . . . . . . . . . 1 . . . . . Propulsion 6 | . 2 3 . . . . . . . . . . . . . . . . . . . . 1 . . . . . Utility 28 | . . 4 1 4 1 . 1 2 . . . 4 . 2 . . 1 . 5 . 1 . . . . . 2 . Weapon 13 | . . . 1 6 1 . . 3 1 . . . . . . . . . . . . . . . . . 1 . Tool/Special 2 | . . . . . . . 1 1 . . . . . . . . . . . . . . . . . . . . Average Slot Usage (%) 76 | . 100 97 63 60 76 78 75 67 70 67 71 88 88 82 76 76 82 86 86 84 84 82 79 80 76 77 82 75 Engine 4 | . 14 13 9 3 3 5 . . . . . 2 . . . . . . . . . . . . . . . . Core 3 | . . . . 4 1 . 5 6 6 6 6 2 5 5 5 5 5 5 9 10 10 9 2 . . . . . Reactor 1 | . . . . . . . . . . . . . . . . . . . . . . . 4 9 9 6 7 7 Treads 8 | . 28 27 18 9 . . . . . . . . . . . . . . . . . . . . . . . . Hover 3 | . . . . 8 22 21 18 5 6 6 3 . . . . . . . . . . . . . . . . . Flight 8 | . . . . . . . . 15 20 20 15 20 17 16 17 17 17 17 23 21 21 21 19 18 19 18 21 19 Device 7 | . 14 10 . . 4 5 9 13 10 10 13 19 11 13 11 11 11 12 12 15 14 7 12 17 14 11 10 10 Storage 7 | . 14 13 9 9 5 5 5 4 . . . . . 4 5 5 5 5 5 5 5 5 4 4 4 4 4 3 Processor 9 | . . . 9 12 11 15 12 6 6 6 8 5 5 5 5 5 5 5 9 10 10 14 14 14 14 13 13 13 Hackware 7 | . . . . . 14 15 11 13 13 13 18 20 35 25 17 17 17 17 15 15 15 13 9 9 9 12 13 10 Protection 1 | . . 2 . . 3 . 1 . . 3 3 2 . 1 5 5 8 9 2 . . 3 5 . . 5 6 4 Energy Gun 2 | . 25 7 . . . . . . . . . . . . . . . . . . . . . . . . . . Energy Cannon 2 | . . 2 9 4 . 5 3 1 6 . . . . . . . . . . . . . . 1 . . . . Ballistic Cannon 4 | . . 9 9 4 4 . . . . . 1 4 5 2 . . . 1 4 5 5 5 2 2 . . . 1 Impact Weapon 1 | . . . . 4 3 5 3 . . . . . 5 2 5 5 5 3 . . . . . . . . . . Peak Build Rating 184 | 7 10 43 43 42 82 78 84 55 51 51 63 95 95 99 79 79 92 94 118 118 121 121 142 140 129 147 161 184 Average Rating 64 | 6 8 16 30 34 74 78 72 47 49 48 49 79 95 91 79 79 85 92 113 118 119 116 127 132 120 134 151 154 On Entrance 78 | . 7 10 43 30 41 78 78 33 51 47 51 43 95 95 79 79 79 92 94 118 118 120 111 131 121 127 140 159 Avg Prop Armor Cover (%) 9 | . . . . . . . . 12 12 8 7 6 . . . . . . 3 . . . 1 5 . 3 . . Naked Turns 5 | . . . . . . . . . . . . . . . . . . . . . . . . . . . . 5 Heaviest Build 71 | 14 29 41 40 40 50 41 48 29 19 20 28 32 24 42 27 27 32 37 44 40 43 46 55 57 48 58 57 71 Greatest Support 67 | 40 40 40 40 40 56 54 56 22 22 22 22 40 36 38 37 37 37 37 48 45 45 45 59 59 47 64 67 67 Greatest Overweight (x) 13 | . . 1 . 2 1 . 1 9 . . 1 1 . 1 . . . . 1 . . 1 13 1 1 1 . 2 Average Overweight (x) . | . . . . . . . . . . . . . . . . . . . . . . . . . . . . . Largest Inventory Capacity 15 | 8 15 15 15 15 15 15 15 15 5 5 5 5 5 10 10 10 10 10 10 10 10 10 15 15 15 15 15 15 Average Capacity 13 | 7 14 15 15 15 15 15 15 12 5 5 5 5 5 9 10 10 10 10 10 10 10 10 11 15 15 15 15 14 Most Carried 15 | 3 15 15 15 15 15 15 15 15 5 5 5 5 5 10 10 10 10 10 10 10 10 10 15 15 15 15 15 15 Average Carried 11 | 1 11 14 11 14 13 15 14 11 4 3 4 4 5 9 10 10 9 9 9 10 9 8 9 14 10 14 14 13 Final Capacity 15 | 8 15 15 15 15 15 15 15 5 5 5 5 5 5 10 10 10 10 10 10 10 10 10 15 15 15 15 15 5 Final Carried 15 | 3 15 15 15 15 15 15 14 5 5 4 5 5 5 10 10 10 10 10 10 10 9 7 15 15 15 15 15 5 Class Distribution -------------------- 37% | Mutant 15% | Hacker-Scout 15% | Commander-Mutant 12% | Hacker-Mutant 7% | Hacker-Ninja 6% | Hacker-Sprinter Dominant Class ---------------- Mutant | -10/Materials Mutant | -10/Subcaves Mutant | -8/Recycling Mutant | -8/Scraptown Hacker-Mutant | -6/Factory Hacker-Mutant | -6/Waste Hacker-Mutant | -6/Factory Hacker-Mutant | -6/Lower Caves Hacker-Mutant | -6/Lower Caves Hacker-Mutant | -6/Data Miner Hacker-Mutant | -5/Proximity Caves Hacker-Sprinter | -5/Factory Wizard-Scout | -5/Waste Hacker-Scout | -5/Factory Hacker-Scout | -5/Upper Caves Hacker-Scout | -5/Upper Caves Hacker-Scout | -5/Zhirov Hacker-Scout | -4/Proximity Caves Hacker-Scout | -4/Factory Hacker-Scout | -4/Waste Hacker-Scout | -4/Factory Hacker-Sprinter | -4/Extension Hacker-Scout | -3/Research Hacker-Scout | -3/Armory Hacker-Ninja | -3/Lab Hacker-Sprinter | -2/Research Hacker-Ninja | -2/Testing Hacker-Ninja | -2/Protoforge Resources | -11 -10 -10 -8 -8 -6 -6 -6 -6 -6 -6 -5 -5 -5 -5 -5 -5 -5 -4 -4 -4 -4 -4 -3 -3 -3 -2 -2 -2 ----------- Run | Yrd Mat Sub Rec Scr Fac Was Fac Low Low Dat Pro Fac Was Fac Upp Upp Zhi Pro Fac Was Fac Ext Res Arm Lab Res Tes Frg Matter Collected 8284 | 270 151 668 58 80 455 . 136 46 48 . 242 452 . 845 80 . 81 81 748 . 117 765 703 . . 345 305 1608 Remotely . | . . . . . . . . . . . . . . . . . . . . . . . . . . . . . Salvage Created 7574 | 265 545 466 143 137 271 . 136 . . . 38 354 . 737 . . 197 46 610 . 95 499 760 . . 345 304 1626 Parts 272 | 25 31 23 8 12 5 . 3 . . . 2 12 . 16 . . 2 1 18 . 4 7 32 . . 11 13 47 Haulers Intercepted 7 | . 2 . . . 1 . . . . . . 1 . 1 . . . . 2 . . . . . . . . . Recyclers Shooed 4 | . . . . . . . . . . . . . . . . . . . . . . . 4 . . . . . Parts Field Recycled . | . . . . . . . . . . . . . . . . . . . . . . . . . . . . . Retrieved Matter . | . . . . . . . . . . . . . . . . . . . . . . . . . . . . . Parts Self-Destructed 15 | . . 7 . . . . . 5 . . 2 . . . . . . 1 . . . . . . . . . . Prevented 3 | . . . . . . . . . . . 2 . . . . . 1 . . . . . . . . . . . Parts Restored . | . . . . . . . . . . . . . . . . . . . . . . . . . . . . . Kills | -11 -10 -10 -8 -8 -6 -6 -6 -6 -6 -6 -5 -5 -5 -5 -5 -5 -5 -4 -4 -4 -4 -4 -3 -3 -3 -2 -2 -2 ------- Run | Yrd Mat Sub Rec Scr Fac Was Fac Low Low Dat Pro Fac Was Fac Upp Upp Zhi Pro Fac Was Fac Ext Res Arm Lab Res Tes Frg Combat Hostiles Destroyed 107 | . 10 15 3 . 2 . . . . . 5 1 . 3 . . . 2 2 . 1 9 12 . . . . 42 Melee 5 | . . . . . . . . . . . . . . . . . . 1 . . . . 1 . . . . 3 Guns 18 | . 10 8 . . . . . . . . . . . . . . . . . . . . . . . . . . Cannons 69 | . . 7 3 . 2 . . . . . 5 1 . 3 . . . 1 2 . 1 9 11 . . . . 24 AOE 14 | . . . . . . . . . . . . . . . . . . . . . . . . . . . . 14 Classes Destroyed 22 | 3 4 4 1 1 1 . . . . . . 2 . . . . . . . . 1 . . . . . . 5 Worker 12 | 1 2 . . . . . . . . . . 2 . 4 . . . . . . . . . . . 1 1 1 Builder 3 | . . . . . . . . . . . . 2 . . . . . . . . . 1 . . . . . . Tunneler 11 | 9 . . . . 1 . . . . . . 1 . . . . . . . . . . . . . . . . Hauler 7 | . 2 . . . 1 . . . . . . 1 . 1 . . . . 2 . . . . . . . . . Recycler 20 | 1 1 . . . 1 . 1 . . . . 1 . 4 . . . . 4 . . . 3 . . 2 2 . Mechanic 1 | . . . . . . . . . . . . . . . . . . . . . 1 . . . . . . . Operator 4 | . 1 . . . . . 1 . . . . . . 1 . . . . . . . . 1 . . . . . Drone 9 | . . . . . . . . . . . . . . . . . . . . . . . . . . . . 9 Turret 2 | . . 2 . . . . . . . . . . . . . . . . . . . . . . . . . . Watcher 11 | . . . . . . . . . . . . 2 . . . . . . . . . 1 1 . . 1 . 6 Swarmer 24 | . 3 4 . . . . . . . . 5 . . . . . . 2 1 . . . 5 . . . . 4 Grunt 22 | . 7 2 . 2 . . . . . . . . . 2 . . . . . . . 4 . . . . . 5 Protector 2 | . . . 2 . . . . . . . . . . . . . . . . . . . . . . . . . Sentry 14 | . . 1 1 . . . . . . . . . . 1 . . . . 1 . 1 5 . . . . . 4 Demolisher 1 | . . . . 1 . . . . . . . . . . . . . . . . . . . . . . . . Specialist 3 | . . . . . . . . . . . . . . . . . . . . . . . . . . . . 3 Hunter 4 | . . . . . . . . . . . . . . . . . . . . . . . . . . . . 4 Programmer 15 | . . . . . 2 . . . . . . 1 . . . . . . . . . . 7 . . . . 5 Hotshot 5 | . . . . . . . . . . . . . . . . . . . . . . . . . . . . 5 Immortal 2 | . . . . . . . . . . . . . . . . . . . . . . . . . . . . 2 Executioner 1 | . . . . . . . . . . . . . . . . . . . . . . . . . . . . 1 Artisan 2 | . . 2 . . . . . . . . . . . . . . . . . . . . . . . . . . Subdweller 8 | . . 8 . . . . . . . . . . . . . . . . . . . . . . . . . . Best Kill Streak 15 | 4 4 3 2 . 1 . 1 . . . 5 4 . 4 . . . 1 3 . 1 3 10 . . 2 1 15 Combat Bots Only 14 | . 3 3 2 . 1 . . . . . 5 1 . 1 . . . 1 1 . 1 3 10 . . . . 14 Max Kills in Single Turn 3 | 1 2 1 1 1 1 . 1 . . . 1 1 . 1 . . . 1 1 . 1 1 2 . . 1 1 3 Gunslinging . | . . . . . . . . . . . . . . . . . . . . . . . . . . . . . Exploded 3 | . . . . . . . . . . . . . . . . . . . . . . . . . . . . 3 Melee 1 | . . . . . . . . . . . . . . . . . . 1 . . . . 1 . . . . 1 Uniques/NPCs Destroyed . | . . . . . . . . . . . . . . . . . . . . . . . . . . . . . Combat | -11 -10 -10 -8 -8 -6 -6 -6 -6 -6 -6 -5 -5 -5 -5 -5 -5 -5 -4 -4 -4 -4 -4 -3 -3 -3 -2 -2 -2 -------- Run | Yrd Mat Sub Rec Scr Fac Was Fac Low Low Dat Pro Fac Was Fac Upp Upp Zhi Pro Fac Was Fac Ext Res Arm Lab Res Tes Frg Hostile Shots Fired 1123 | . 34 106 . . 120 1 60 26 . . 29 70 . 87 . 3 . 22 17 . . 46 88 9 . 27 10 368 Missed 529 | . 8 46 . . 52 . 24 10 . . 9 36 . 44 . 3 . 12 9 . . 25 40 4 . 8 5 194 Hits 594 | . 26 60 . . 68 1 36 16 . . 20 34 . 43 . . . 10 8 . . 21 48 5 . 19 5 174 Melee 10 | . . . . . . 1 . . . . . . . . . . . . . . . . . . . . . 9 Projectile 584 | . 26 60 . . 68 . 36 16 . . 20 34 . 43 . . . 10 8 . . 21 48 5 . 19 5 165 AOE 10 | . . 1 . . 7 . . . . . . . . . . . . . . . . . . . . . . 2 Critical Strikes 38 | . . . . . 1 1 1 1 . . . 1 . 2 . . . 1 1 . . 2 4 . . 1 1 21 Actively Blocked 1 | . . . . . . . . . . . . . . . . . . . . . . . 1 . . . . . Part Disruptions 1 | . . . . . . . . . . . . . . . . . . 1 . . . . . . . . . . Damage Taken 12271 | . 291 865 14 . 1308 51 675 269 32 . 307 582 . 848 . . . 252 150 . . 622 1123 329 . 458 161 3934 Core 2618 | . 78 98 . . 147 . 171 98 . . 48 129 . 102 . . . 47 21 . . 104 97 57 . 97 20 1304 Absorbed by Shields 139 | . . . . . . . . . . . . . . 5 . . . . . . . 49 . . . . . 85 Redirected to Shielding 345 | . . . . . . . . . . . . 82 . . . . . 10 . . . . 103 . . . . 150 Ignored by Resistances 20 | . . . . . 20 . . . . . . . . . . . . . . . . . . . . . . . Regen/Repaired (Parts) 1349 | . . . . . 51 . . . . . . . . 186 . . . . 235 . . . 219 . . . 247 411 Core Remaining (%) 72 | 100 . . . 29 . . . . . . 45 . . . . . . 72 . . . 89 . . 100 . . . Volleys Fired 649 | 21 46 91 6 2 28 . 12 1 3 . 20 31 . 31 . . 1 2 59 . 7 61 57 11 . 8 8 143 Largest 2 | 2 2 2 2 1 2 . 1 1 1 . 1 1 . 1 . . 1 1 1 . 1 1 1 1 . 1 1 1 Hottest 140 | 90 100 130 120 . 90 . 90 90 90 . 33 47 . 60 . . 7 60 60 . 60 60 60 120 . 120 120 140 Shots Fired 768 | 42 84 141 10 2 34 . 11 1 4 . 21 31 . 31 . . 1 3 59 . 7 63 57 11 . 8 7 140 Gun 180 | 42 78 60 . . . . . . . . . . . . . . . . . . . . . . . . . . Cannon 553 | . . 70 10 . 34 . 11 1 4 . 21 30 . 31 . . . 3 57 . 7 63 57 11 . 8 7 128 Launcher 12 | . . . . . . . . . . . . . . . . . . . . . . . . . . . . 12 Special 23 | . 6 11 . 2 . . . . . . . 1 . . . . 1 . 2 . . . . . . . . . Kinetic 502 | . 11 88 4 . 26 . . . . . 21 30 . 31 . . . 3 57 . 7 63 57 3 . . . 101 Thermal 248 | 42 73 53 6 . 8 . 11 1 4 . . . . . . . . . . . . . . 8 . 8 7 27 Explosive 12 | . . . . . . . . . . . . . . . . . . . . . . . . . . . . 12 Electromagnetic . | . . . . . . . . . . . . . . . . . . . . . . . . . . . . . Robot Hit Streak 34 | 11 9 12 5 7 13 . 9 . . . 4 4 . 7 . . 4 1 22 . 31 34 10 3 . . . 29 Robot Miss Streak 5 | 3 3 3 1 . 4 . . 1 . . 2 2 . 3 . . . 2 4 . . 5 4 2 . . . 4 Penetration Max 1 | . . . . . . . . . . . . . . . . . . . . . . . . . . . . 1 Secondary Targets . | . . . . . . . . . . . . . . . . . . . . . . . . . . . . . Shots Hit Robots 530 | 26 54 71 9 6 18 . 3 . . . 9 29 . 23 . . 5 3 21 . 3 57 51 2 . 7 7 126 Core Hits 349 | 12 32 28 5 2 6 . 1 . . . 5 8 . 15 . . 2 . 17 . 5 42 30 . . 3 4 132 Critical Kills 5 | . . 1 . . . . . . . . . 1 . 1 . . 1 . . . . . . . . . . 1 Critical Parts Destroyed 3 | . . . . . . . . . . . . 1 . 1 . . 1 . . . . . . . . . . . Critical Strikes 32 | . 1 2 . . 1 . . . . . . 5 . 2 . . 2 . 2 . 1 3 3 . . . . 10 Burn 1 | . 1 . . . . . . . . . . . . . . . . . . . . . . . . . . . Meltdown 1 | . . . . . . . . . . . . . . . . . . . . . . . . . . . . 1 Destroy 2 | . . 2 . . . . . . . . . . . . . . . . . . . . . . . . . . Blast 19 | . . . . . 1 . . . . . . 1 . . . . . . 2 . 1 3 3 . . . . 8 Smash 6 | . . . . . . . . . . . . 2 . 2 . . 2 . . . . . . . . . . . Sever 3 | . . . . . . . . . . . . 2 . . . . . . . . . . . . . . . 1 Melee Attacks 240 | . . . . 4 6 . 5 . . . . 53 . 24 1 6 4 10 2 . . . 30 2 5 28 21 39 Impact 64 | . . . . . 6 . 5 . . . . 8 . 24 1 6 4 10 . . . . . . . . . . Slashing 176 | . . . . 4 . . . . . . . 45 . . . . . . 2 . . . 30 2 5 28 21 39 Piercing . | . . . . . . . . . . . . . . . . . . . . . . . . . . . . . Sneak Attacks 38 | . . . . 4 2 . 1 . . . . 8 . 8 . . . . . . . . 2 . . 4 4 5 Combat Hostiles . | . . . . . . . . . . . . . . . . . . . . . . . . . . . . . Follow-up Attacks . | . . . . . . . . . . . . . . . . . . . . . . . . . . . . . Damage Inflicted 28571 | 310 604 1249 261 282 1131 . 228 . . . 383 1596 . 1943 . . 441 154 1142 . 226 3845 2902 34 . 517 491 10832 Guns 1486 | 310 604 572 . . . . . . . . . . . . . . . . . . . . . . . . . . Cannons 17264 | . . 677 261 . 582 . 64 . . . 383 322 . 1032 . . . 26 1142 . 226 3491 2260 34 . . . 6764 Explosions 3542 | . . . . . 345 . . . . . . . . . . . . . . . . 354 . . . . . 2843 Melee 6241 | . . . . 282 204 . 126 . . . . 1274 . 911 . . 441 128 . . . . 642 . . 517 491 1225 Ramming 38 | . . . . . . . 38 . . . . . . . . . . . . . . . . . . . . . Kinetic 16452 | . 60 949 145 . 454 . . . . . 383 322 . 1032 . . . 26 1142 . 226 3491 2260 34 . . . 5928 Thermal 2997 | 310 544 300 116 . 473 . 64 . . . . . . . . . . . . . . 354 . . . . . 836 Explosive 2843 | . . . . . . . . . . . . . . . . . . . . . . . . . . . . 2843 Electromagnetic . | . . . . . . . . . . . . . . . . . . . . . . . . . . . . . Impact 2529 | . . . . . 204 . 126 . . . . 719 . 911 . . 441 128 . . . . . . . . . . Slashing 3712 | . . . . 282 . . . . . . . 555 . . . . . . . . . . 642 . . 517 491 1225 Piercing . | . . . . . . . . . . . . . . . . . . . . . . . . . . . . . Highest Corruption 20 | . . . . . 3 10 13 13 14 14 14 7 15 20 7 7 7 7 1 9 9 10 6 5 5 2 2 12 Average Corruption 7 | . . . . . 2 7 10 13 13 14 14 5 11 15 7 7 7 7 1 2 9 9 4 3 5 1 2 7 Corruption Purged 20 | . . . . . . . . . . . . . . 15 . . . . . . . . 5 . . . . . Corruption Blocked . | . . . . . . . . . . . . . . . . . . . . . . . . . . . . . Effects 276 | . . . . . 8 2 28 8 9 2 10 8 2 58 1 3 2 11 6 . 6 31 12 6 10 1 4 48 Message Errors 54 | . . . . . 2 1 9 1 1 1 1 2 . 10 1 . . . 1 . 1 5 3 1 2 . 2 10 Matter Fused 61 | . . . . . 1 . 6 3 1 . 1 3 1 13 . 1 1 1 1 . 1 7 1 3 1 . 1 14 Heat Flow Errors 48 | . . . . . 1 . 4 2 1 . 2 2 1 9 . 2 . 4 1 . 2 6 4 . 2 . . 5 Energy Discharges 27 | . . . . . 2 . 1 . . . 1 1 . 4 . . 1 2 . . . 5 2 2 2 1 . 3 Parts Rejected 4 | . . . . . . . . . . . 1 . . 1 . . . . . . . 1 . . . . . 1 Parts Fused 3 | . . . . . . . . . . . 2 . . . . . . . . . 1 . . . . . . . Data Loss (minor) 34 | . . . . . 2 . 2 1 2 1 1 . . 6 . . . 2 2 . 1 3 2 . 2 . . 7 Data Loss (major) 15 | . . . . . . . 2 1 1 . . . . 2 . . . 1 1 . . 2 . . 1 . . 4 Misfires 7 | . . . . . . . 1 . 1 . 1 . . 1 . . . 1 . . . 2 . . . . . . Alerts 4 | . . . . . . . . . . . . . . 3 . . . . . . . . . . . . . 1 Misdirections 12 | . . . . . . 1 1 . 2 . . . . 8 . . . . . . . . . . . . . . Weapon Failures 7 | . . . . . . . 2 . . . . . . 1 . . . . . . . . . . . . 1 3 Overload Shots . | . . . . . . . . . . . . . . . . . . . . . . . . . . . . . Overflow Damage 2451 | . . . . 65 163 . 96 . . . 30 422 . 499 . . 232 97 11 . . 42 234 . . 89 136 335 Projectiles 252 | . . . . . 18 . . . . . 30 20 . 5 . . . 19 11 . . 42 71 . . . . 36 Explosions 186 | . . . . . 33 . . . . . . . . . . . . . . . . . . . . . . 153 Melee 2013 | . . . . 65 112 . 96 . . . . 402 . 494 . . 232 78 . . . . 163 . . 89 136 146 Knockbacks 127 | . . 3 . . 11 . 2 . . . 1 8 . 15 . . . 1 9 . 1 21 36 . . . . 19 Impact 12 | . . . . . 2 . 2 . . . . 3 . 4 . . . 1 . . . . . . . . . . Kinetic 103 | . . 3 . . 8 . . . . . 1 5 . 8 . . . . 9 . 1 19 32 . . . . 17 Secondary 12 | . . . . . 1 . . . . . . . . 3 . . . . . . . 2 4 . . . . 2 Self-Inflicted Damage 25 | . . . . . . . 19 . . . . . . . . . . . . . . . . . . . . 6 Shots 1 | . . . . . . . . . . . . . . . . . . . . . . . . . . . . 1 Rammed 1 | . . . . . . . 1 . . . . . . . . . . . . . . . . . . . . . Targets Rammed 1 | . . . . . . . 1 . . . . . . . . . . . . . . . . . . . . . Kicked . | . . . . . . . . . . . . . . . . . . . . . . . . . . . . . Crushed . | . . . . . . . . . . . . . . . . . . . . . . . . . . . . . Highest Temperature 404 | 180 165 12 99 . 113 . 282 268 124 . 169 214 176 239 . 272 . 202 201 . 277 274 209 108 182 9 404 112 Average Temperature 71 | 63 41 11 46 . 46 . 116 93 43 . 76 60 91 59 . 115 . 77 62 . 149 87 90 39 88 9 79 43 Received Heat Transfer 1558 | . 135 216 9 . 84 . 261 72 . . . 27 . 171 . . . 18 . . . 62 . . . 36 27 440 Effects 4 | . . . . . . . 1 1 . . . . . . . . . . . . 2 . . . . . . . Energy Bleed 2 | . . . . . . . 1 1 . . . . . . . . . . . . . . . . . . . . Interference 2 | . . . . . . . . . . . . . . . . . . . . . 2 . . . . . . . Siege Activations . | . . . . . . . . . . . . . . . . . . . . . . . . . . . . . Martial Activations . | . . . . . . . . . . . . . . . . . . . . . . . . . . . . . Shielding Activations . | . . . . . . . . . . . . . . . . . . . . . . . . . . . . . Robots Disrupted . | . . . . . . . . . . . . . . . . . . . . . . . . . . . . . Combat Hostiles . | . . . . . . . . . . . . . . . . . . . . . . . . . . . . . Robots Corrupted 12 | . . . . . 2 . 1 . . . . 3 . 5 . . 1 . . . . . . . . . . . Combat Hostiles 1 | . . . . . . . . . . . . . . . . . 1 . . . . . . . . . . . Parts Fried 13 | . . . . . 1 . 3 . . . . 2 . 4 . . 1 1 . . . 1 . . . . . . Impact Corruptions 45 | . . . . . 4 . 2 . . . . 12 . 17 . . 7 2 . . . 1 . . . . . . Robots Melted 1 | . . . . . . . . . . . . . . . . . . . . . . . . . . . . 1 Combat Hostiles 1 | . . . . . . . . . . . . . . . . . . . . . . . . . . . . 1 Parts Melted 8 | 1 2 2 1 . . . . . . . . . . . . . . . . . . . . . . . . 2 Heat Transferred 4478 | 831 1489 668 167 . 450 . 100 . . . . . . . . . . . . . . 225 . . . . . 548 Parts Sabotaged . | . . . . . . . . . . . . . . . . . . . . . . . . . . . . . Parts Stolen . | . . . . . . . . . . . . . . . . . . . . . . . . . . . . . Parts Stripped . | . . . . . . . . . . . . . . . . . . . . . . . . . . . . . Power Chain Reactions . | . . . . . . . . . . . . . . . . . . . . . . . . . . . . . Alert | -11 -10 -10 -8 -8 -6 -6 -6 -6 -6 -6 -5 -5 -5 -5 -5 -5 -5 -4 -4 -4 -4 -4 -3 -3 -3 -2 -2 -2 ------- Run | Yrd Mat Sub Rec Scr Fac Was Fac Low Low Dat Pro Fac Was Fac Upp Upp Zhi Pro Fac Was Fac Ext Res Arm Lab Res Tes Frg Maximum Alert Level 5 | . . . . . 1 . . . . . . . . 1 . . . . . . . 1 1 . . . . 5 Low Security (%) 84 | 100 100 . 100 . 72 100 100 . . . . 100 100 99 . . . . 100 100 100 53 44 100 . 100 100 29 Level 1 10 | . . . . . 27 . . . . . . . . . . . . . . . . 46 55 . . . . 22 Level 2 . | . . . . . . . . . . . . . . . . . . . . . . . . . . . . 3 Level 3 1 | . . . . . . . . . . . . . . . . . . . . . . . . . . . . 9 Level 4 2 | . . . . . . . . . . . . . . . . . . . . . . . . . . . . 22 Level 5 1 | . . . . . . . . . . . . . . . . . . . . . . . . . . . . 11 High Security . | . . . . . . . . . . . . . . . . . . . . . . . . . . . . . Max Security . | . . . . . . . . . . . . . . . . . . . . . . . . . . . . . Peak Influence 1632 | 20 92 . 152 . 244 68 31 . . . . 150 17 193 . . . . 93 5 30 297 254 112 . 47 30 1632 Initial 111 | . . . 102 . . 68 26 . . . . 6 17 4 . . . . 32 5 3 . 90 111 . . 21 . Average 117 | 1 21 . 28 . 75 57 6 . . . . 21 13 58 . . . . 23 5 5 182 148 78 . 11 7 701 Influence Increases 7585 | 55 357 420 241 . 467 . 154 . . . 110 516 . 633 60 15 10 130 471 . 47 767 505 70 . 242 135 2180 Destroy 0b10 Robot/C 2100 | . 200 180 20 . 40 . . . . . 100 20 . 60 . . . 40 40 . 20 360 240 . . . . 780 Destroy 0b10 Robot/NC 430 | 55 30 . 20 . 15 . 10 . . . . 45 . 50 . . 10 . 30 . 5 20 25 . . 20 15 80 Destroy Leader 368 | . 44 . . . 22 . . . . . 10 16 . 12 . . . . 14 . 10 54 42 . . 2 . 142 Allied During Kill 188 | . . . 5 . . . . . . . . . . . . . . . . . . 106 . . . . . 77 Successful Hack 387 | . 17 . 15 . 18 . 16 . . . . 50 . 14 . . . . 96 . . 10 37 3 . 64 27 20 Select Force Hacks 240 | . 60 . 180 . . . . . . . . . . . . . . . . . . . . . . . . . Disable Machine 840 | . . . . . 150 . 30 . . . . 90 . 105 . . . . 45 . . 30 45 15 . . 45 285 Destroy Structure 1007 | . 6 . 1 . 42 . 8 . . . . 160 . 122 . . . . 126 . 12 52 56 22 . 81 48 271 Partial Spotted 450 | . . . . . 15 . 30 . . . . 45 . . . . . . 60 . . 45 45 15 . 45 . 150 Lose Combat Pursuer 1575 | . . 240 . . 165 . 60 . . . . 90 . 270 60 15 . 90 60 . . 90 15 15 . 30 . 375 Influence Decreases 6069 | 55 335 228 446 9 272 157 192 . . . 100 475 44 561 110 44 10 78 507 11 52 595 465 231 51 203 174 664 Entered New Map 633 | . . 11 112 9 . 127 12 . . . . 4 34 3 30 6 . . 20 11 2 . 82 101 51 . 18 . Time Decay 4335 | 55 335 207 334 . 212 20 165 . . . 90 236 10 394 80 38 10 78 386 . 50 365 361 120 . 176 149 464 Lost Part 373 | . . 10 . . 50 . 4 . . . 10 30 . 30 . . . . 10 . . 20 12 10 . 27 . 160 Lost Ally 290 | . . . . . 10 10 . . . . . . . 3 . . . . . . . 210 10 . . . 7 40 Purge Threat 438 | . . . . . . . 11 . . . . 205 . 131 . . . . 91 . . . . . . . . . Squads Dispatched 85 | . 2 . . . 3 . 9 . . . . 15 . 8 . . . . 15 . . 2 7 2 . 5 5 12 Investigation 46 | . 2 . . . 2 . 7 . . . . 9 . 4 . . . . 9 . . . 4 1 . 1 1 6 Extermination 24 | . . . . . 1 . 1 . . . . 4 . 2 . . . . 5 . . . 3 . . 3 3 2 Reinforcement 15 | . . . . . . . 1 . . . . 2 . 2 . . . . 1 . . 2 . 1 . 1 1 4 Assault . | . . . . . . . . . . . . . . . . . . . . . . . . . . . . . Garrison . | . . . . . . . . . . . . . . . . . . . . . . . . . . . . . Intercept . | . . . . . . . . . . . . . . . . . . . . . . . . . . . . . Searches Triggered . | . . . . . . . . . . . . . . . . . . . . . . . . . . . . . Unchained Authorized 3 | . . . . . . . . . . . . . . . . . . . 1 . 1 1 . . . . . . Data Miner Redirects 4 | . . . . . . . . . . . . 1 . 2 . . . . . . . . 1 . . . . . Construction Impeded 4 | . . . . . . . 1 . . . . 1 . . . . . . . . . 2 . . . . . . Haulers Reinforced 1 | . . . . . . . . . . . . . . 1 . . . . . . . . . . . . . . Active Scanning Responses . | . . . . . . . . . . . . . . . . . . . . . . . . . . . . . Cargo Convoy Interrupts . | . . . . . . . . . . . . . . . . . . . . . . . . . . . . . Stealth | -11 -10 -10 -8 -8 -6 -6 -6 -6 -6 -6 -5 -5 -5 -5 -5 -5 -5 -4 -4 -4 -4 -4 -3 -3 -3 -2 -2 -2 --------- Run | Yrd Mat Sub Rec Scr Fac Was Fac Low Low Dat Pro Fac Was Fac Upp Upp Zhi Pro Fac Was Fac Ext Res Arm Lab Res Tes Frg Distress Signals 23 | . . . . . . . 3 . . . . . . 2 . . . . 3 . . 1 1 2 . 1 2 8 Communications Jammed 49 | . . . . . . . . . . . . 5 . 2 . . . . 2 . 8 12 16 1 . . . 3 Distress Signals 48 | . . . . . . . . . . . . 5 . 2 . . . . 2 . 8 12 16 . . . . 3 Times Spotted 461 | . 23 27 4 . 24 5 34 8 . . 9 44 2 54 1 2 . 13 24 3 3 32 25 7 . 15 9 93 Peak Tracking Total 15 | . 4 6 3 . 6 6 8 7 . . 3 13 2 10 4 1 . 6 4 3 2 7 4 2 . 4 10 15 Tactical Retreats 82 | . . 7 . . 5 . 11 1 . . 2 11 . 15 1 1 . 2 4 . . 2 3 1 . 6 2 8 ECM-based Alert Blocks 101 | . . . . . . . 24 5 . . 3 33 . 13 . . . 2 . . . . 2 1 . 9 9 . Traps | -11 -10 -10 -8 -8 -6 -6 -6 -6 -6 -6 -5 -5 -5 -5 -5 -5 -5 -4 -4 -4 -4 -4 -3 -3 -3 -2 -2 -2 ------- Run | Yrd Mat Sub Rec Scr Fac Was Fac Low Low Dat Pro Fac Was Fac Upp Upp Zhi Pro Fac Was Fac Ext Res Arm Lab Res Tes Frg Traps Triggered 33 | . . 1 . . 2 . 4 . . . . 4 . 3 . . . 1 4 . . 2 1 . . 1 1 9 Indirectly . | . . . . . . . . . . . . . . . . . . . . . . . . . . . . . Trap Hack Attempts . | . . . . . . . . . . . . . . . . . . . . . . . . . . . . . Triggered . | . . . . . . . . . . . . . . . . . . . . . . . . . . . . . Disarmed . | . . . . . . . . . . . . . . . . . . . . . . . . . . . . . Reprogrammed . | . . . . . . . . . . . . . . . . . . . . . . . . . . . . . Reused . | . . . . . . . . . . . . . . . . . . . . . . . . . . . . . Traps Extracted . | . . . . . . . . . . . . . . . . . . . . . . . . . . . . . Installed . | . . . . . . . . . . . . . . . . . . . . . . . . . . . . . Triggered . | . . . . . . . . . . . . . . . . . . . . . . . . . . . . . Machines | -11 -10 -10 -8 -8 -6 -6 -6 -6 -6 -6 -5 -5 -5 -5 -5 -5 -5 -4 -4 -4 -4 -4 -3 -3 -3 -2 -2 -2 ---------- Run | Yrd Mat Sub Rec Scr Fac Was Fac Low Low Dat Pro Fac Was Fac Upp Upp Zhi Pro Fac Was Fac Ext Res Arm Lab Res Tes Frg Machines Disabled 63 | . . 3 . . 10 . 2 . . . . 6 . 7 . . . . 3 . . 2 3 1 1 . 3 22 Max in Single Turn 9 | . . 1 . . 9 . 1 . . . . 5 . 4 . . . . 1 . . 1 1 1 1 . 1 3 Garrison Access 8 | . . . . . 1 . 1 . . . . . . 2 . . . . 2 . . . . . . 1 . 1 Energy Cycler 1 | . . . . . . . . . . . . . . . . . . . . . . 1 . . . . . . Machines Repaired . | . . . . . . . . . . . . . . . . . . . . . . . . . . . . . Machines Dismantled . | . . . . . . . . . . . . . . . . . . . . . . . . . . . . . Machines Sabotaged . | . . . . . . . . . . . . . . . . . . . . . . . . . . . . . Overloaded Fab Kills . | . . . . . . . . . . . . . . . . . . . . . . . . . . . . . Hacking | -11 -10 -10 -8 -8 -6 -6 -6 -6 -6 -6 -5 -5 -5 -5 -5 -5 -5 -4 -4 -4 -4 -4 -3 -3 -3 -2 -2 -2 --------- Run | Yrd Mat Sub Rec Scr Fac Was Fac Low Low Dat Pro Fac Was Fac Upp Upp Zhi Pro Fac Was Fac Ext Res Arm Lab Res Tes Frg Machines Accessed 201 | . 9 3 12 6 8 . 14 2 . 3 . 29 . 18 . . 4 . 28 . 1 2 13 4 1 14 10 20 Terminals 93 | . 6 . 6 . 3 . 5 . . . . 15 . 10 . . . . 11 . 1 2 7 2 . 9 6 10 Fabricators 17 | . . . . . 1 . . . . . . 5 . 1 . . . . 2 . . . 1 1 . 1 1 4 Repair Stations 12 | . 1 . . . 1 . . . . . . . . 1 . . . . 3 . . . 2 1 . 1 2 . Recycling Units 34 | . 2 . 6 . 1 . 5 . . . . 3 . 3 . . . . 8 . . . 2 . . 1 . 3 Scanalyzers 14 | . . . . . 1 . 2 . . . . 3 . 1 . . . . 2 . . . 1 . . 1 1 2 Garrison Access 12 | . . . . . 1 . 2 . . . . 3 . 2 . . . . 2 . . . . . . 1 . 1 Total Hacks 524 | . 21 4 17 21 26 . 38 2 . 21 . 81 . 47 . . 17 . 77 . 1 7 34 9 5 30 23 43 Successful 356 | . 13 4 13 21 16 . 18 2 . 21 . 48 . 33 . . 17 . 59 . 1 4 20 4 5 18 16 23 Failed 166 | . 8 . 4 . 10 . 19 . . . . 33 . 14 . . . . 18 . . 3 14 5 . 12 6 20 Catastrophic 17 | . 1 . . . . . 3 . . . . 5 . 1 . . . . 1 . . . 3 1 . 1 . 1 Database Lockouts 2 | . . . . . . . 1 . . . . . . . . . . . . . . . . . . . 1 . Manual 205 | . 16 . 15 . 12 . 16 . . . . 28 . 26 . . . . 34 . . 4 16 5 . 9 5 19 Terminals 272 | . 16 . 11 . 14 . 18 . . . . 53 . 36 . . . . 39 . 1 7 21 4 . 20 13 19 Fabricators 48 | . . . . . 4 . . . . . . 12 . 2 . . . . 9 . . . 3 3 . 2 2 11 Repair Stations 29 | . 2 . . . 2 . . . . . . . . 2 . . . . 7 . . . 6 2 . 3 5 . Recycling Units 41 | . 3 . 6 . 1 . 6 . . . . 3 . 4 . . . . 9 . . . 2 . . 1 . 6 Scanalyzers 46 | . . . . . 4 . 11 . . . . 7 . 1 . . . . 10 . . . 2 . . 3 3 5 Garrison Access 18 | . . . . . 1 . 3 . . . . 6 . 2 . . . . 3 . . . . . . 1 . 2 Terminal Hacks 170 | . 2 4 1 21 3 . 4 2 . 21 . 24 . 17 . . 17 . 17 . 1 1 7 1 5 8 5 9 Record 35 | . . 1 . 21 . . . . . 1 . . . . . . 5 . . . . . . . 5 . 2 . Part Schematic 20 | . . . . . . . . . . 12 . 2 . 1 . . 4 . . . . . . . . . . 1 Robot Schematic 6 | . . . 1 . . . . . . 5 . . . . . . . . . . . . . . . . . . Robot Analysis 4 | . . . . . . . . . . . . . . . . . 4 . . . . . . . . . . . Prototype ID Bank 7 | . . . . . . . . . . 3 . . . . . . 4 . . . . . . . . . . . Open Door 5 | . . 1 . . . . . 2 . . . . . . . . . . . . 1 . . . . . 1 . Level Access Points 1 | . . . . . . . . . . . . 1 . . . . . . . . . . . . . . . . Branch Access Points 5 | . 1 . . . 1 . . . . . . 1 . 1 . . . . . . . . 1 . . . . . Emergency Access Points 1 | . . . . . . . . . . . . . . 1 . . . . . . . . . . . . . . Machine Index 2 | . . . . . . . . . . . . . . 1 . . . . . . . . . . . 1 . . Terminal Index 6 | . . . . . 1 . . . . . . 1 . 1 . . . . 1 . . . 1 1 . . . . Fabricator Index 2 | . . . . . . . . . . . . . . 1 . . . . . . . . 1 . . . . . Repair Station Index 2 | . . . . . . . . . . . . . . . . . . . 1 . . . . . . 1 . . Recycling Unit Index 3 | . . . . . 1 . 1 . . . . . . . . . . . 1 . . . . . . . . . Scanalyzer Index 1 | . . . . . . . . . . . . . . . . . . . 1 . . . . . . . . . Garrison Index 2 | . . . . . . . . . . . . . . 1 . . . . 1 . . . . . . . . . Unreport Threat 9 | . . . . . . . 1 . . . . 4 . 1 . . . . 2 . . . . . . 1 . . Locate Traps 13 | . 1 . . . . . 1 . . . . 4 . 1 . . . . 3 . . 1 1 . . . . 1 Surveillance Status 1 | . . . . . . . . . . . . 1 . . . . . . . . . . . . . . . . Patrol Status 4 | . . . . . . . . . . . . . . . . . . . 1 . . . . . . 2 . 1 Transport Status 1 | . . . . . . . . . . . . . . 1 . . . . . . . . . . . . . . Recall Investigation 9 | . . . . . . . . . . . . 3 . 1 . . . . 3 . . . 1 . . . . 1 Recall Extermination 14 | . . . . . . . . . . . . 4 . 3 . . . . 2 . . . 2 . . 1 2 . Recall Reinforcements 1 | . . . . . . . . . . . . . . . . . . . . . . . . . . . . 1 Hauler Manifests 3 | . . . . . . . 1 . . . . 1 . 1 . . . . . . . . . . . . . . Registered Components 3 | . . . . . . . . . . . . . . 1 . . . . . . . . . . . 1 . 1 Registered Prototypes 4 | . . . . . . . . . . . . . . 1 . . . . 1 . . . . . . 1 . 1 Zone Layout 3 | . . . . . . . . . . . . 2 . . . . . . . . . . . . . . . 1 Proto ID Catalog 2 | . . 1 . . . . . . . . . . . . . . . . . . . . . . . . . 1 Release Object 1 | . . 1 . . . . . . . . . . . . . . . . . . . . . . . . . . Fabricator Hacks 30 | . . . . . 3 . . . . . . 8 . 1 . . . . 4 . . . 2 1 . 2 2 7 Network Status 3 | . . . . . 1 . . . . . . 1 . . . . . . 1 . . . . . . . . . Load Schematic 15 | . . . . . 1 . . . . . . 4 . 1 . . . . 2 . . . 1 1 . 1 1 3 Build 12 | . . . . . 1 . . . . . . 3 . . . . . . 1 . . . 1 . . 1 1 4 Repair Station Hacks 19 | . 1 . . . 2 . . . . . . . . 2 . . . . 6 . . . 3 . . 1 4 . Scan Component 10 | . 1 . . . 1 . . . . . . . . 1 . . . . 3 . . . 1 . . 1 2 . Repair 8 | . . . . . 1 . . . . . . . . 1 . . . . 3 . . . 1 . . . 2 . Refit 1 | . . . . . . . . . . . . . . . . . . . . . . . 1 . . . . . Recycling Unit Hacks 2 | . . . . . . . . . . . . . . 1 . . . . . . . . . . . 1 . . Retrieve Components 2 | . . . . . . . . . . . . . . 1 . . . . . . . . . . . 1 . . Scanalyzer 30 | . . . . . 2 . 5 . . . . 7 . 1 . . . . 9 . . . 2 . . 2 1 1 Insert Component 8 | . . . . . 1 . 2 . . . . 1 . . . . . . 4 . . . . . . . . . Analyze 8 | . . . . . 1 . 2 . . . . 1 . . . . . . 4 . . . . . . . . . Retrieve Study 14 | . . . . . . . 1 . . . . 5 . 1 . . . . 1 . . . 2 . . 2 1 1 Garrison Access Hacks 8 | . . . . . 1 . 1 . . . . . . 2 . . . . 2 . . . . . . 1 . 1 Seal Access 8 | . . . . . 1 . 1 . . . . . . 2 . . . . 2 . . . . . . 1 . 1 Unauthorized Hacks 97 | . 10 . 12 . 5 . 8 . . . . 9 . 9 . . . . 21 . . 3 6 2 . 3 4 5 Terminals 56 | . 8 . 6 . 4 . 3 . . . . 4 . 5 . . . . 11 . . 3 3 1 . 3 3 2 Track 5 | . . . . . . . . . . . . 1 . . . . . . 1 . . 1 . . . 1 1 . Assimilate 13 | . 1 . . . 1 . 1 . . . . . . 1 . . . . 3 . . 1 1 1 . 1 1 1 Botnet 15 | . 2 . 1 . 1 . 1 . . . . 2 . 1 . . . . 3 . . . 2 . . . 1 1 Disrupt 4 | . . . . . . . . . . . . 1 . . . . . . 1 . . 1 . . . 1 . . Operators 1 | . . . . . . . . . . . . . . 1 . . . . . . . . . . . . . . Skim 18 | . 5 . 5 . 2 . 1 . . . . . . 2 . . . . 3 . . . . . . . . . Fabricators 7 | . . . . . . . . . . . . 2 . 1 . . . . 2 . . . 1 1 . . . . Prioritize 3 | . . . . . . . . . . . . 1 . . . . . . 1 . . . 1 . . . . . Recompile 4 | . . . . . . . . . . . . 1 . 1 . . . . 1 . . . . 1 . . . . Repair Stations . | . . . . . . . . . . . . . . . . . . . . . . . . . . . . . Recycling Units 33 | . 2 . 6 . 1 . 5 . . . . 3 . 3 . . . . 8 . . . 2 . . . . 3 Tunnel 8 | . 2 . 6 . . . . . . . . . . . . . . . . . . . . . . . . . Fedlink 23 | . . . . . 1 . 5 . . . . 3 . 3 . . . . 8 . . . 2 . . . . 1 Scraphulk 2 | . . . . . . . . . . . . . . . . . . . . . . . . . . . . 2 Scanalyzers 1 | . . . . . . . . . . . . . . . . . . . . . . . . . . . 1 . Researchers 1 | . . . . . . . . . . . . . . . . . . . . . . . . . . . 1 . Garrison Access . | . . . . . . . . . . . . . . . . . . . . . . . . . . . . . Data Cores Recovered 1 | . 1 . . . . . . . . . . . . . . . . . . . . . . . . . . . Used 1 | . 1 . . . . . . . . . . . . . . . . . . . . . . . . . . . Hacking Detections 111 | . 6 . 4 . 5 . 10 . . . . 20 . 7 . . . . 9 . . 2 9 4 . 12 9 14 Full Trace Events 13 | . . . . . 1 . 2 . . . . 3 . . . . . . . . . . 2 . . 1 1 3 Feedback Events 1 | . . . . . . . 1 . . . . . . . . . . . . . . . . . . . . . Corruption 1 | . . . . . . . 1 . . . . . . . . . . . . . . . . . . . . . Feedback Blocked . | . . . . . . . . . . . . . . . . . . . . . . . . . . . . . Robot Schematics Acquired 6 | . . . 1 . . . . . . 5 . . . . . . . . . . . . . . . . . . Robots Built . | . . . . . . . . . . . . . . . . . . . . . . . . . . . . . Authchips . | . . . . . . . . . . . . . . . . . . . . . . . . . . . . . Time . | . . . . . . . . . . . . . . . . . . . . . . . . . . . . . Total Robot Build Rating . | . . . . . . . . . . . . . . . . . . . . . . . . . . . . . Part Schematics Acquired 53 | . . . . 10 12 1 6 . . 12 . 3 . 1 . . 4 . 3 . . . . . . . . 1 Parts Built 15 | . . . . . 1 . . . . . . 3 . . . . . . 2 . . . 1 . . 2 2 4 Authchips 3 | . . . . . . . . . . . . 1 . . . . . . 1 . . . . . . 1 . . Time 600 | . . . . . 84 . . . . . . 115 . . . . . . 47 . . . 84 . . 31 47 192 Total Part Build Rating 80 | . . . . . 4 . . . . . . 15 . . . . . . 10 . . . 6 . . 10 10 25 Part Studies Acquired 14 | . . . . . . . 1 . . . . 5 . 1 . . . . 1 . . . 2 . . 2 1 1 Parts Repaired 8 | . . . . . 1 . . . . . . . . 1 . . . . 3 . . . 1 . . . 2 . Time 345 | . . . . . 25 . . . . . . . . 44 . . . . 139 . . . 89 . . . 48 . Parts Recycled . | . . . . . . . . . . . . . . . . . . . . . . . . . . . . . Recycled Matter . | . . . . . . . . . . . . . . . . . . . . . . . . . . . . . Retrieved Matter . | . . . . . . . . . . . . . . . . . . . . . . . . . . . . . Retrieved Components 3 | . . . . . . . . . . . . . . . . . . . . . . . . . . 3 . . Parts Scanalyzed 6 | . . . . . 1 . 1 . . . . 1 . . . . . . 3 . . . . . . . . . Part Schematics Acquired 6 | . . . . . 1 . 1 . . . . 1 . . . . . . 3 . . . . . . . . . Parts Damaged . | . . . . . . . . . . . . . . . . . . . . . . . . . . . . . Bothacking | -11 -10 -10 -8 -8 -6 -6 -6 -6 -6 -6 -5 -5 -5 -5 -5 -5 -5 -4 -4 -4 -4 -4 -3 -3 -3 -2 -2 -2 ------------ Run | Yrd Mat Sub Rec Scr Fac Was Fac Low Low Dat Pro Fac Was Fac Upp Upp Zhi Pro Fac Was Fac Ext Res Arm Lab Res Tes Frg Used RIF Installer . | . . . . . . . . . . . . . . . . . . . . . . . . . . . . . Robots Hacked 3 | . . . . . . . . . . . . 1 . . . . . . 2 . . . . . . . . . Non-combat 3 | . . . . . . . . . . . . 1 . . . . . . 2 . . . . . . . . . Combat . | . . . . . . . . . . . . . . . . . . . . . . . . . . . . . Robot Hacks Applied 3 | . . . . . . . . . . . . 1 . . . . . . 2 . . . . . . . . . find_chute 2 | . . . . . . . . . . . . 1 . . . . . . 1 . . . . . . . . . find_recycling 1 | . . . . . . . . . . . . . . . . . . . 1 . . . . . . . . . Relay Couplers Released 4 | . . . . . . . . . . . . 4 . . . . . . . . . . . . . . . . Programmers 4 | . . . . . . . . . . . . 4 . . . . . . . . . . . . . . . . Fabnet Peak Effective % . | . . . . . . . . . . . . . . . . . . . . . . . . . . . . . Robots Rewired 11 | . . . 4 . . . . . . . . . . . . . . . . . . 7 . . . . . . Allies Hacked 1 | . . . . . . . . . . . . . . . . . . . . . . 1 . . . . . . Hacks Repelled . | . . . . . . . . . . . . . . . . . . . . . . . . . . . . . Allies | -11 -10 -10 -8 -8 -6 -6 -6 -6 -6 -6 -5 -5 -5 -5 -5 -5 -5 -4 -4 -4 -4 -4 -3 -3 -3 -2 -2 -2 -------- Run | Yrd Mat Sub Rec Scr Fac Was Fac Low Low Dat Pro Fac Was Fac Upp Upp Zhi Pro Fac Was Fac Ext Res Arm Lab Res Tes Frg Total Allies 31 | . 1 . 4 . 1 1 . . . . . . . 1 . . . . 3 1 . 12 1 1 . 1 1 3 Largest Group 10 | . 1 1 4 4 1 1 . . . . . . . 1 . . . . 2 1 . 10 1 1 . 1 1 2 Highest-Rated Group 494 | . 10 10 93 93 27 27 . . . . . . . 26 . . . . 52 46 . 494 26 10 . 26 26 278 Highest-Rated Ally 159 | . 10 10 34 34 27 27 . . . . . . . 26 . . . . 45 46 . 159 26 10 . 26 26 139 Total Orders 9 | . . . . . 2 . . . . . . 1 . . . . . . 2 . . 3 . . . . . 1 STAY 7 | . . . . . 2 . . . . . . . . . . . . . 2 . . 2 . . . . . 1 FOLLOW 1 | . . . . . . . . . . . . . . . . . . . . . . 1 . . . . . . EXPLORE 1 | . . . . . . . . . . . . 1 . . . . . . . . . . . . . . . . Ally Attacks 147 | . . . 5 . . . . . . . . . . . . . . . . . . 80 . . . . . 62 Total Damage 4274 | . . . 51 . . . . . . . . . . . . . . . . . . 2031 . . . . . 2192 Kills 19 | . . . 1 . . . . . . . . . . . . . . . . . . 12 . . . . . 6 Allies Corrupted . | . . . . . . . . . . . . . . . . . . . . . . . . . . . . . Allies Melted 4 | . . . . . . . . . . . . . . . 1 . . . 1 . . 1 . . . . . 1 Intel | -11 -10 -10 -8 -8 -6 -6 -6 -6 -6 -6 -5 -5 -5 -5 -5 -5 -5 -4 -4 -4 -4 -4 -3 -3 -3 -2 -2 -2 ------- Run | Yrd Mat Sub Rec Scr Fac Was Fac Low Low Dat Pro Fac Was Fac Upp Upp Zhi Pro Fac Was Fac Ext Res Arm Lab Res Tes Frg Active Infowar (turns) 14981 | 332 1068 1618 . . 722 52 652 239 144 43 293 1263 30 1212 162 190 86 409 1529 18 202 857 883 249 314 540 406 1468 Optics 6501 | . . . . . . . 61 . . . . . . . . . . . 1503 18 202 857 883 249 314 540 406 1468 Sensors 7752 | . . . . . . . 506 . . . . 684 30 1063 162 190 86 409 1523 18 195 46 749 249 314 360 406 762 IFF 498 | . . . . . . . . . . . . 498 . . . . . . . . . . . . . . . . Structural 6680 | . . . . . 722 52 390 239 81 . . 779 30 892 162 190 86 386 1360 18 202 6 209 249 314 313 . . Seismic 3018 | 332 1068 1618 . . . . . . . . . . . . . . . . . . . . . . . . . . Cloaking 7 | . . . . . . . . . . . . 7 . . . . . . . . . . . . . . . . Jamming 4572 | . . . . . . . . . . 36 293 260 . 156 . . . . 900 18 106 355 579 249 314 317 301 688 ECM 1991 | . . . . . . . 186 239 144 43 293 409 . 165 . . . 24 . . . . 117 178 . 120 73 . Robot Analysis Total 4 | . . . . . . . . . . . . . . . . . 4 . . . . . . . . . . . Derelict Logs Recovered 7 | . . . . 2 . . . . 1 . 1 . . . 1 . . 2 . . . . . . . . . . Drone Launches 2 | . . . . . . . . . . . . 2 . . . . . . . . . . . . . . . . Drone Recoveries . | . . . . . . . . . . . . . . . . . . . . . . . . . . . . . Exploration | -11 -10 -10 -8 -8 -6 -6 -6 -6 -6 -6 -5 -5 -5 -5 -5 -5 -5 -4 -4 -4 -4 -4 -3 -3 -3 -2 -2 -2 ------------- Run | Yrd Mat Sub Rec Scr Fac Was Fac Low Low Dat Pro Fac Was Fac Upp Upp Zhi Pro Fac Was Fac Ext Res Arm Lab Res Tes Frg Turns Passed 25797 | 425 1411 2707 1911 7190 882 52 652 239 144 43 293 1272 30 1221 162 190 86 409 1529 18 202 857 883 249 314 540 406 1480 Spaces Moved 27565 | 195 740 1413 880 3737 1170 88 829 252 315 93 454 2474 93 1968 355 447 181 835 2843 62 519 1140 1386 335 246 1078 950 2487 Core 27 | 4 . . . . . . . 1 . . . . . . . . . . . . . . 1 . . . . 21 Treads 5588 | 191 740 1413 880 2364 . . . . . . . . . . . . . . . . . . . . . . . . Legs . | . . . . . . . . . . . . . . . . . . . . . . . . . . . . . Wheels . | . . . . . . . . . . . . . . . . . . . . . . . . . . . . . Hover 3496 | . . . . 1373 1170 88 829 36 . . . . . . . . . . . . . . . . . . . . Flight 18454 | . . . . . . . . 215 315 93 454 2474 93 1968 355 447 181 835 2843 62 519 1140 1385 335 246 1078 950 2466 Fastest Speed 6 | 50 160 160 160 77 53 59 59 42 42 42 42 28 32 32 34 34 34 34 23 28 28 28 25 22 29 26 17 6 Average Speed 66 | 157 160 163 160 155 58 59 66 85 42 42 47 33 32 35 34 34 34 34 28 28 28 29 31 42 29 30 24 30 Slowest Speed 700 | 160 160 250 160 220 132 59 129 500 42 42 128 115 32 115 34 34 34 34 108 28 28 108 700 110 104 104 26 145 Overloaded Moves 682 | . . . . . . . . . . . . 4 . . . . . . 10 . . . 1 14 . . 271 382 Propulsion Burnouts . | . . . . . . . . . . . . . . . . . . . . . . . . . . . . . Robots Hopped 106 | . . . . . . . . 4 . . . 7 . 7 . . . 2 21 . . 15 27 1 . 7 2 13 Potential Cave-ins 6 | . . . . . . . . . . . . . . 2 . . . . . . 2 . . 2 . . . . Cave-ins Triggered 1 | . . . . . . . . . . . . . . . . . . . . . . . . 1 . . . . Teleports 2 | . . . . . . . . . . . . . . . . . . . . . . . . 1 . . . 1 Exploration Rate (%) 59 | 8 97 53 99 95 31 81 24 38 54 69 56 62 73 56 64 65 60 70 66 89 11 56 30 30 94 34 79 67 Regions Visited 28 Branch Regions 16 Pre-discovered Areas 19 | . 3 1 9 . . . 1 . . 1 1 . . . . . 3 . . . . . . . . . . . Known Exits Taken 18 | . 1 . . . . . 1 1 1 1 1 . . 1 1 1 1 1 . . 1 1 1 1 1 1 1 . Unknown Exits Taken 4 | 1 . 1 1 1 . . . . . . . . . . . . . . . . . . . . . . . . Scrap Searched 19 | . . 4 . 4 . . . 1 1 . 4 . . . 3 1 . 1 . . . . . . . . . . Spaces Dug 284 | . 5 2 . . 12 . 5 . 3 . 2 44 . 62 1 5 . 6 45 . 5 . 23 10 . 23 14 17 Terrain Destroyed 573 | . 6 16 1 . 41 . 9 1 4 . 11 100 . 74 1 5 . 8 63 . 8 29 31 12 . 28 17 108 Melee 125 | . . . . . 2 . . . . . . 31 . 14 1 5 . 5 2 . . . 17 2 . 20 11 15 Projectile 255 | . 6 16 1 . 14 . 9 1 4 . 11 24 . 25 . . . 3 61 . 8 16 14 10 . 8 6 18 AOE 193 | . . . . . 25 . . . . . . 45 . 35 . . . . . . . 13 . . . . . 75 Terrain Rammed . | . . . . . . . . . . . . . . . . . . . . . . . . . . . . . Walls Destroyed . | . . . . . . . . . . . . . . . . . . . . . . . . . . . . . Machines Disabled . | . . . . . . . . . . . . . . . . . . . . . . . . . . . . . Actions | -11 -10 -10 -8 -8 -6 -6 -6 -6 -6 -6 -5 -5 -5 -5 -5 -5 -5 -4 -4 -4 -4 -4 -3 -3 -3 -2 -2 -2 --------- Run | Yrd Mat Sub Rec Scr Fac Was Fac Low Low Dat Pro Fac Was Fac Upp Upp Zhi Pro Fac Was Fac Ext Res Arm Lab Res Tes Frg Total 33714 | 267 870 1642 1377 5128 1324 87 910 269 323 96 510 2800 92 2405 393 473 196 936 3487 61 567 1588 1696 427 482 1232 1079 2997 Wait 4250 | 42 52 87 431 1320 57 . 21 8 4 . 23 158 . 294 38 21 . 83 476 . 26 321 185 63 207 83 65 185 Move 27342 | 194 739 1412 879 3736 1170 87 828 246 314 92 453 2460 92 1953 354 446 180 830 2802 61 518 1112 1337 331 245 1064 945 2462 Hop 90 | . . . . . . . . 1 . . . 7 . 7 . . . 2 20 . . 11 21 1 . 6 2 12 Pick Up 191 | 3 13 4 21 26 18 . 6 3 1 1 1 12 . 21 . . 2 2 16 . 2 . 10 4 7 4 6 8 Fast Attach 129 | 7 . 1 2 3 6 . 7 2 . . 3 23 . 5 . . 4 . 16 . 3 2 11 1 5 10 3 15 Attach 130 | . . 3 . 5 15 . 5 5 . 2 4 7 . 10 . . 1 1 7 . 2 4 7 5 1 9 4 33 Detach 103 | . . . . 2 4 . 7 1 . . 5 7 . 5 . . . . 6 . 1 3 10 3 3 9 3 34 Swap 172 | . 14 22 . 3 8 . 10 . . . . 8 . 23 . . 1 4 14 . 3 4 16 2 . 6 12 22 Drop 225 | . 6 22 9 27 12 . 8 2 1 1 1 27 . 16 . . 3 2 27 . 5 1 10 3 9 5 10 18 Fire 649 | 21 46 91 6 2 28 . 12 1 3 . 20 31 . 31 . . 1 2 59 . 7 61 57 11 . 8 8 143 Melee 240 | . . . . 4 6 . 5 . . . . 53 . 24 1 6 4 10 2 . . . 30 2 5 28 21 39 Ram 1 | . . . . . . . 1 . . . . . . . . . . . . . . . . . . . . . Kick . | . . . . . . . . . . . . . . . . . . . . . . . . . . . . . Crush . | . . . . . . . . . . . . . . . . . . . . . . . . . . . . . Escape Stasis 142 | . . . . . . . . . . . . 7 . 16 . . . . 42 . . 48 2 1 . . . 26 Rewire 50 | . . . 29 . . . . . . . . . . . . . . . . . . 21 . . . . . . Trap . | . . . . . . . . . . . . . . . . . . . . . . . . . . . . . Miscellaneous . | . . . . . . . . . . . . . . . . . . . . . . . . . . . . . Route ------- -11/Scrapyard -10/Materials (discovered 5 exits: *Mat x3 / *Min / *Sub) -10/Subcaves (discovered 3 exits: [*Mat] / *Rec / *Scr) -8/Recycling (discovered 2 exits: *Fac / *Scr) -8/Scraptown (discovered 2 exits: *Fac x2) -6/Factory (discovered 3 exits: Fac / Low x2) -6/Waste -6/Factory -6/Lower Caves -6/Lower Caves (discovered 2 exits: Fac / *Dat) -6/Data Miner -5/Proximity Caves -5/Factory (discovered 6 exits: *Fac x4 / *Upp x2) -5/Waste -5/Factory (discovered 4 exits: Fac x2 / *Upp x2) -5/Upper Caves -5/Upper Caves (discovered 2 exits: *Fac / *Zhi) -5/Zhirov -4/Proximity Caves -4/Factory (discovered 5 exits: *Res x4 / *Upp) -4/Waste -4/Factory -4/Extension -3/Research (discovered 3 exits: *Arm / Qua x2) -3/Armory -3/Lab -2/Research (discovered 3 exits: *Acc x2 / *Tes) -2/Testing (discovered 3 exits: *Acc / [*Sec] / *Frg) -2/Protoforge (discovered 1 exit: *Acc) History --------- Turn | Location | Event 7 | -11/Scrapyard | Discovered new exit (range 16) 426 | -11/Scrapyard | Entered Materials 427 | -10/Materials | Build established: Mutant 511 | -10/Materials | Identified exit to Mines 580 | -10/Materials | Discovered new exit (range 12) 1149 | -10/Materials | Identified exit to Subcaves 1187 | -10/Materials | Identified exit to Materials 1188 | -10/Materials | Learned location of Recycling (-8) 1198 | -10/Materials | Learned 4 Recycling zone layouts 1837 | -10/Materials | Entered Subcaves 1837 | -10/Subcaves | Accompanied by 1 ally 1838 | -10/Subcaves | Approached by a straggling Scientist 2275 | -10/Subcaves | Shifting Twisted Machinery released Flamer 2275 | -10/Subcaves | Shifting Twisted Machinery released Slug Cannon 2276 | -10/Subcaves | Discovered new exit (range 14) 2472 | -10/Subcaves | A swath of the cavern ceiling suddenly collapsed 2495 | -10/Subcaves | Scientist uncovered a shortcut to Scraptown 2591 | -10/Subcaves | Visited 4L-MR0's lab 2609 | -10/Subcaves | Found Rainbow Chip 3131 | -10/Subcaves | A swath of the cavern ceiling suddenly collapsed 3203 | -10/Subcaves | Disturbed a concealed Subdweller 3223 | -10/Subcaves | Learned location of Zion (-7) 3223 | -10/Subcaves | Met a Zionite searching for "candidates" 3255 | -10/Subcaves | Shifting Twisted Machinery released Sub. Laser 3385 | -10/Subcaves | Core integrity fell below 50% 3661 | -10/Subcaves | Discovered new exit (range 14) 3940 | -10/Subcaves | Ambushed by angry Subdweller bent on revenge 4313 | -10/Subcaves | Found SUBCON Basin 4326 | -10/Subcaves | Attached Rainbow Chip, gained temporary slots: Power, Propulsion, Utility, Weapon 4544 | -10/Subcaves | Entered Recycling 4545 | -8/Recycling | Joined Warlord attack on 0b10 via Recycling 4733 | -8/Recycling | Discovered new exit (range 15) 4780 | -8/Recycling | Scanned before Scraplab entrance 4808 | -8/Recycling | Entered Scraplab 4982 | -8/Recycling | Discovered new exit (range 4) 6031 | -8/Recycling | Learned location of Lower Caves (-7) 6086 | -8/Recycling | Learned location of 2 exits from Factory 6131 | -8/Recycling | Learned Factory emergency access door positions 6164 | -8/Recycling | Learned 2 Lower Caves zone layouts 6191 | -8/Recycling | Build established: Commander-Mutant 6201 | -8/Recycling | Learned Storage trap positions 6212 | -8/Recycling | Learned Factory repair station intel 6261 | -8/Recycling | Learned location of 1 exit from Recycling 6301 | -8/Recycling | Learned Storage emergency access door positions 6455 | -8/Recycling | Entered Scraptown 6455 | -8/Scraptown | Accompanied by 4 allies 6570 | -8/Scraptown | Heard Great Nut preacher, LISTEN AND RECITE! 6909 | -8/Scraptown | Discovered new exit (range 7) 7039 | -8/Scraptown | Scanned Subdweller tech in exchange for log data 7044 | -8/Scraptown | Learned Research terminal intel 7045 | -8/Scraptown | Learned 8 Factory zone layouts 7090 | -8/Scraptown | Visited Fellowship of the Rings 7429 | -8/Scraptown | Visited TADAMA 7458 | -8/Scraptown | Visited Symbiants 7516 | -8/Scraptown | Visited Spacefarers 7658 | -8/Scraptown | Visited Shadow of the Wyrm 7695 | -8/Scraptown | Visited CPS Storage 7720 | -8/Scraptown | Visited UFD Registry 7724 | -8/Scraptown | Registered with UFD as "Metaltube" 7770 | -8/Scraptown | Visited Chapter 10 7860 | -8/Scraptown | Visited Scrapoid Research Area 7933 | -8/Scraptown | Visited Junk Repository 7992 | -8/Scraptown | Visited Abandonware Association 8028 | -8/Scraptown | Learned abandonware demo "ERRANTS.EXE" 8116 | -8/Scraptown | Discovered new exit (range 5) 8240 | -8/Scraptown | Visited Infowarlord's Domain 8271 | -8/Scraptown | Found Exp. Signal Interpreter 8304 | -8/Scraptown | Visited Scrap Suit Storage 8445 | -8/Scraptown | Visited Curators Association 8504 | -8/Scraptown | Visited LU-1G1's Boring Crew 8868 | -8/Scraptown | Visited Supply Room 9058 | -8/Scraptown | Visited SPCMW 9775 | -8/Scraptown | Attached CPS modules to Grenadier 3a. 9825 | -8/Scraptown | Attached CPS modules to Trooper 3b. 10054 | -8/Scraptown | Build established: Mutant 10980 | -8/Scraptown | Tech Extrapolator generated special schematic: Deep Structural Scanner 11265 | -8/Scraptown | Tech Extrapolator generated special schematic: Machine Rigger 12694 | -8/Scraptown | Guru changed UFD alias to "Cargobot" 13554 | -8/Scraptown | Met Optimus 13554 | -8/Scraptown | Accepted into 0bPrime 13645 | -8/Scraptown | Entered Factory 13645 | -6/Factory | Accompanied by 1 ally 13645 | -6/Factory | Evolved 8 slots: Propulsion x3, Utility x5 13646 | -6/Factory | Identified exit to Lower Caves 13646 | -6/Factory | Identified exit to Factory 13649 | -6/Factory | Loaded intel: 6 repair station locations 13952 | -6/Factory | Build established: Hacker-Mutant 14022 | -6/Factory | Loaded intel: 8 recycling unit locations 14131 | -6/Factory | Repaired Gravmag Array? 14143 | -6/Factory | Fabricated Deep Structural Scanner? 14256 | -6/Factory | Spotted B-75 Beast 14313 | -6/Factory | Lost 4 parts (1p1n1u1w) 14527 | -6/Factory | Sucked down chute 14527 | -6/Factory | Entered Waste 14527 | -6/Waste | Met up with 1 ally sucked down the chute earlier 14530 | -6/Waste | Spotted C-40 Crusher 14540 | -6/Waste | Spotted C-40 Crusher 14542 | -6/Waste | EMP discharged 14542 | -6/Waste | System corruption reached 10% 14543 | -6/Waste | Spotted C-40 Crusher 14557 | -6/Waste | Spotted C-40 Crusher 14559 | -6/Waste | Spotted C-40 Crusher 14560 | -6/Waste | Spotted C-40 Crusher 14569 | -6/Waste | Discovered new exit (range 14) 14579 | -6/Waste | Entered Factory 14762 | -6/Factory | Loaded intel: 8 recycling unit locations 14762 | -6/Factory | Learned location of Protoforge (-2) 15044 | -6/Factory | Tech Extrapolator generated special schematic: Energy Deflector 15079 | -6/Factory | Lost 3 parts (2n1u) 15135 | -6/Factory | Central database locked down 15196 | -6/Factory | Discovered exit to Lower Caves (range 13) 15231 | -6/Factory | Entered Lower Caves 15464 | -6/Lower Caves | Discovered new exit (range 15) 15469 | -6/Lower Caves | Identified exit to Lower Caves 15470 | -6/Lower Caves | Entered another Lower Caves area 15486 | -6/Lower Caves | Discovered exit to Factory (range 17) 15532 | -6/Lower Caves | Learned Factory stockpile data 15611 | -6/Lower Caves | Discovered new exit (range 7) 15613 | -6/Lower Caves | Identified exit to Data Miner 15614 | -6/Lower Caves | Entered Data Miner 15615 | -6/Data Miner | Discovered new exit (range 7) 15625 | -6/Data Miner | Met Data Miner 15633 | -6/Data Miner | Learned location of Section 7 (-2) 15640 | -6/Data Miner | Received God Mode back door access code from Data Miner 15656 | -6/Data Miner | Identified exit to Proximity Caves 15657 | -6/Data Miner | Entered Proximity Caves 15706 | -5/Proximity Caves | Learned location of Armory (-3) 15770 | -5/Proximity Caves | Core integrity fell below 50% 15927 | -5/Proximity Caves | Attracted the attention of an 0b10 checkpoint 15942 | -5/Proximity Caves | Discovered exit to Factory (range 13) 15950 | -5/Proximity Caves | Entered Factory 15950 | -5/Factory | Evolved 2 slots: Utility x2 16059 | -5/Factory | Incoming investigation squad redirected 16080 | -5/Factory | Fabricated Deep Structural Scanner (x1) 16168 | -5/Factory | Discovered new exit (range 12) 16197 | -5/Factory | Loaded intel: 8 recycling unit locations 16338 | -5/Factory | Identified exit to Upper Caves 16343 | -5/Factory | Discovered new exit (range 19) 16350 | -5/Factory | Identified exit to Factory 16526 | -5/Factory | Build established: Hacker-Sprinter 16700 | -5/Factory | Spotted B-75 Beast 16884 | -5/Factory | Lost 3 parts (2n1u) 16945 | -5/Factory | Fabricated Imp. Hacking Suite (x1) 17158 | -5/Factory | Fabricated Tri-rail Accelerator (x1) 17222 | -5/Factory | Sucked down chute 17222 | -5/Factory | Entered Waste 17229 | -5/Waste | Spotted C-40 Crusher 17231 | -5/Waste | Spotted C-40 Crusher 17234 | -5/Waste | Spotted C-40 Crusher 17237 | -5/Waste | EMP discharged 17237 | -5/Waste | System corruption reached 10% 17244 | -5/Waste | Build established: Wizard-Scout 17248 | -5/Waste | Discovered new exit (range 12) 17248 | -5/Waste | Spotted C-40 Crusher 17252 | -5/Waste | Identified exit to Factory 17252 | -5/Waste | Entered Factory 17634 | -5/Factory | Discovered exit to Factory (range 7) 18282 | -5/Factory | Repaired Tri-rail Accelerator 18410 | -5/Factory | Loaded intel: 8 recycling unit locations 18412 | -5/Factory | Discovered exit to Factory (range 16) 18430 | -5/Factory | Incoming investigation squad redirected 18460 | -5/Factory | Incoming investigation squad redirected 18473 | -5/Factory | Entered Upper Caves 18509 | -5/Upper Caves | Encountered a Warlord checkpoint 18511 | -5/Upper Caves | Learned location of 1 exit from Factory 18630 | -5/Upper Caves | Discovered new exit (range 10) 18634 | -5/Upper Caves | Identified exit to Upper Caves 18635 | -5/Upper Caves | Entered another Upper Caves area 18640 | -5/Upper Caves | Discovered exit to Factory (range 17) 18644 | -5/Upper Caves | Build established: Hacker-Scout 18691 | -5/Upper Caves | Attracted the attention of an 0b10 checkpoint 18795 | -5/Upper Caves | Discovered new exit (range 15) 18824 | -5/Upper Caves | Identified exit to Zhirov 18825 | -5/Upper Caves | Entered Zhirov 18825 | -5/Zhirov | Discovered new exit (range 3) 18832 | -5/Zhirov | Met Zhirov 18838 | -5/Zhirov | Learned location of Command (-1) 18841 | -5/Zhirov | Zhirov requested help retrieving the SGEMP Prototype 18848 | -5/Zhirov | Found Alien Artifact 18848 | -5/Zhirov | Identified Integrated Dissipator 18848 | -5/Zhirov | Installed Integrated Dissipator, increased core heat dissipation (+20) 18897 | -5/Zhirov | Found Alien Artifact 18911 | -5/Zhirov | Identified exit to Proximity Caves 18911 | -5/Zhirov | Entered Proximity Caves 19284 | -4/Proximity Caves | Discovered exit to Factory (range 18) 19314 | -4/Proximity Caves | Attracted the attention of an 0b10 checkpoint 19320 | -4/Proximity Caves | Entered Factory 19320 | -4/Factory | Evolved 2 slots: Power x1, Propulsion x1 19321 | -4/Factory | Identified exit to Upper Caves 19682 | -4/Factory | Found Prototype Processor 19682 | -4/Factory | Identified Exp. Targeting Computer 19704 | -4/Factory | Repaired Hrd. Light Armor Plating? 19756 | -4/Factory | Fabricated Weapon Mount (x2) 19846 | -4/Factory | Found Prototype Processor 19846 | -4/Factory | Identified Exp. Melee Analysis Suite 19932 | -4/Factory | Loaded intel: 8 recycling unit locations 19933 | -4/Factory | Discovered new exit (range 20) 19942 | -4/Factory | Discovered new exit (range 10) 20034 | -4/Factory | Discovered new exit (range 10) 20036 | -4/Factory | Identified exit to Research 20080 | -4/Factory | Identified Transdimensional Reconstructor 20174 | -4/Factory | Spotted B-86 Titan 20180 | -4/Factory | Repaired Tri-rail Accelerator 20427 | -4/Factory | Spotted B-86 Titan 20623 | -4/Factory | Repaired Mic. Fission Core+ 20736 | -4/Factory | Unchained authorized (CL-0N3) 20750 | -4/Factory | Discovered exit to Research (range 17) 20849 | -4/Factory | Manually triggered Chute Trap 20849 | -4/Factory | Sucked down chute 20849 | -4/Factory | Entered Waste 20850 | -4/Waste | Met a frightened Derelict 20852 | -4/Waste | Spotted C-40 Crusher 20857 | -4/Waste | Spotted C-40 Crusher 20857 | -4/Waste | Spotted C-40 Crusher 20859 | -4/Waste | Spotted C-40 Crusher 20859 | -4/Waste | Spotted C-40 Crusher 20860 | -4/Waste | Discovered new exit (range 22) 20864 | -4/Waste | EMP discharged 20866 | -4/Waste | Identified exit to Factory 20867 | -4/Waste | Entered Factory 21041 | -4/Factory | Unchained authorized (CL-0N3) 21068 | -4/Factory | Discovered new exit (range 5) 21068 | -4/Factory | Identified exit to Extension 21069 | -4/Factory | Entered Extension 21100 | -4/Extension | Rescued A7 21157 | -4/Extension | Rescued a captive Derelict 21158 | -4/Extension | Rescued a captive Derelict 21228 | -4/Extension | Rescued a captive Derelict 21260 | -4/Extension | Unchained authorized (CL-0N3) 21415 | -4/Extension | Build established: Hacker-Sprinter 21540 | -4/Extension | RX-0MU(g) reconstituted as X-87 Electro 21540 | -4/Extension | Energy Cycler disabled 21541 | -4/Extension | Rescued a captive Derelict 21541 | -4/Extension | Rescued a captive Derelict 21543 | -4/Extension | Rescued a captive Derelict 21545 | -4/Extension | Rescued a captive Derelict 21545 | -4/Extension | Rescued a captive Derelict 21547 | -4/Extension | X-87 Electro reconstituted as CL-0N3 21551 | -4/Extension | Rescued a captive Derelict 21553 | -4/Extension | Rescued a captive Derelict 21577 | -4/Extension | Spotted B-86 Titan 21803 | -4/Extension | Spotted B-86 Titan 21824 | -4/Extension | Allies destroyed B-86 Titan 21850 | -4/Extension | R-10 Processor reconstituted as Combat Programmer 21851 | -4/Extension | Spotted Combat Programmer 21893 | -4/Extension | System corruption reached 10% 21894 | -4/Extension | Lost 5 allies 21919 | -4/Extension | Discovered exit to Research (range 19) 21922 | -4/Extension | Extracted ID and sensor layout for unrecognized location from A7's data core 21926 | -4/Extension | Entered Research 21926 | -3/Research | Evolved 2 slots: Propulsion x1, Utility x1 21927 | -3/Research | Identified exit to Quarantine 21928 | -3/Research | Loaded intel: 23 terminal locations 21968 | -3/Research | Loaded intel: 5 recycling unit locations 22005 | -3/Research | Spotted B-86 Titan 22156 | -3/Research | Repaired Tri-rail Accelerator? 22345 | -3/Research | Destroyed 10 combat bots 22576 | -3/Research | Found Prototype Device 22576 | -3/Research | Identified Exp. EM Disruption Field 22583 | -3/Research | Incoming investigation squad redirected 22608 | -3/Research | Found Gamma Bomb Array 22624 | -3/Research | Build established: Hacker-Scout 22630 | -3/Research | Identified exit to Armory 22714 | -3/Research | Fabricated Tri-rail Accelerator (x1) 22809 | -3/Research | Entered Armory 22944 | -3/Armory | Found Fusion Bomb Launcher 22977 | -3/Armory | Crushed by falling debris 23014 | -3/Armory | Spotted B-86 Titan 23032 | -3/Armory | Warped through subspace to slip node 23032 | -3/Armory | Discovered new exit (range 1) 23032 | -3/Armory | Identified exit to Lab 23058 | -3/Armory | Entered Lab 23058 | -3/Lab | Discovered new exit (range 9) 23061 | -3/Lab | Identified exit to Research 23062 | -3/Lab | Hidden lab's door opened automatically 23062 | -3/Lab | Sensor layout match revealed 23063 | -3/Lab | Gained access to the hidden lab's interior 23145 | -3/Lab | Found Transdimensional Reconstructor 23152 | -3/Lab | Found Integrated Dissipator 23152 | -3/Lab | Installed Integrated Dissipator, increased core heat dissipation (+20) 23159 | -3/Lab | Found Alien Artifact 23159 | -3/Lab | Identified Core Regenerator 23159 | -3/Lab | Used Core Regenerator, restored core integrity (+260) 23166 | -3/Lab | Unable to decrypt terminal 23208 | -3/Lab | Unable to decrypt terminal 23239 | -3/Lab | Found Prototype Energy Gun 23241 | -3/Lab | Identified Hyp. EM Gauss Rifle 23246 | -3/Lab | Found Prototype Energy Gun 23246 | -3/Lab | Identified Tachyon Dispersion Ray 23305 | -3/Lab | Found Prototype Protection 23305 | -3/Lab | Identified Med. Regenerative Plating 23328 | -3/Lab | Build established: Hacker-Ninja 23345 | -3/Lab | Found Prototype Hackware 23372 | -3/Lab | Entered Research 23372 | -2/Research | Evolved 2 slots: Propulsion x1, Utility x1 23373 | -2/Research | Identified exit to Testing 23388 | -2/Research | Identified Deep Network Scanner 23419 | -2/Research | Spotted B-90 Cyclops 23621 | -2/Research | Discovered new exit (range 8) 23623 | -2/Research | Identified exit to Access 23655 | -2/Research | Spotted B-90 Cyclops 23698 | -2/Research | Lost 4 parts (1p2n1u) 23712 | -2/Research | Discovered exit to Access (range 18) 23760 | -2/Research | Fabricated Weapon Mount? 23912 | -2/Research | Entered Testing 23919 | -2/Testing | Central database locked down 24008 | -2/Testing | Repaired Mic. Antimatter Reactor 24078 | -2/Testing | Fabricated Weapon Mount (x2) 24124 | -2/Testing | Spotted PG-8FRVH67631 24144 | -2/Testing | Discovered exit to Access (range 20) 24164 | -2/Testing | Repaired Exp. Utility Shielding 24194 | -2/Testing | Found Prototype Device 24194 | -2/Testing | Identified 2N-1CE's Frost Array 24275 | -2/Testing | Found Prototype Protection 24300 | -2/Testing | Spotted Fortress 24317 | -2/Testing | Discovered new exit (range 6) 24317 | -2/Testing | Discovered new exit (range 6) 24318 | -2/Testing | Identified exit to Protoforge 24318 | -2/Testing | Entered Protoforge 24319 | -2/Protoforge | Superfortress began startup sequence 24505 | -2/Protoforge | Spotted B-90 Cyclops 24585 | -2/Protoforge | Discovered exit to Access (range 19) 24755 | -2/Protoforge | Spotted Hotshot 24759 | -2/Protoforge | Destroyed Hotshot 24772 | -2/Protoforge | Spotted AP7-3 24772 | -2/Protoforge | Spotted AP7-3 24773 | -2/Protoforge | Spotted Hotshot 24832 | -2/Protoforge | Found Prototype Protection 24832 | -2/Protoforge | Identified Cep. Core Shell 24971 | -2/Protoforge | Spotted Hotshot 24971 | -2/Protoforge | Spotted Hotshot 24976 | -2/Protoforge | Spotted EXE-6 24977 | -2/Protoforge | Spotted Decapitator 24978 | -2/Protoforge | Spotted Decapitator 24989 | -2/Protoforge | Spotted EXE-6 24989 | -2/Protoforge | Spotted EXE-6 25015 | -2/Protoforge | UFD initiated attack on Protoforge (Readiness: Maximal) 25015 | -2/Protoforge | Loaded intel: 3 recycling unit locations 25031 | -2/Protoforge | Destroyed EXE-6 25032 | -2/Protoforge | Fabricated Tactical Coordination Suite? 25033 | -2/Protoforge | Fabricated Tactical Coordination Suite? 25036 | -2/Protoforge | Scraphulk reinforcements arrived? 25044 | -2/Protoforge | Scraphulk reinforcements arrived? 25052 | -2/Protoforge | Optimus greeted in Protoforge 25055 | -2/Protoforge | Fabricated Cld. Nuclear Pulse Thruster? 25057 | -2/Protoforge | Found Prototype Processor 25057 | -2/Protoforge | Identified Exp. Core Analyzer 25061 | -2/Protoforge | Found Exp. Targeting Computer 25071 | -2/Protoforge | Fabricated Exp. Reaction Control System? 25076 | -2/Protoforge | Lost 4 allies 25197 | -2/Protoforge | Destroyed 14 combat bots 25216 | -2/Protoforge | Spotted Immortal 25224 | -2/Protoforge | Spotted Immortal 25224 | -2/Protoforge | Spotted Immortal 25241 | -2/Protoforge | Allies destroyed Immortal 25253 | -2/Protoforge | Spotted Immortal 25253 | -2/Protoforge | Spotted Immortal 25253 | -2/Protoforge | Spotted Immortal 25265 | -2/Protoforge | Spotted Hotshot 25265 | -2/Protoforge | Spotted Hotshot 25265 | -2/Protoforge | Spotted Hotshot 25265 | -2/Protoforge | Spotted Hotshot 25271 | -2/Protoforge | Found Prototype Device 25271 | -2/Protoforge | Identified Crosscalibrator 25276 | -2/Protoforge | Spotted Immortal 25276 | -2/Protoforge | Spotted Immortal 25277 | -2/Protoforge | Spotted Decapitator 25277 | -2/Protoforge | Spotted Decapitator 25277 | -2/Protoforge | Spotted Decapitator 25319 | -2/Protoforge | UFD reported confirmed Drillbomb installation 25322 | -2/Protoforge | Found Prototype Storage 25322 | -2/Protoforge | Identified Cep. NT7 Matterbank 25350 | -2/Protoforge | Spotted Hotshot 25351 | -2/Protoforge | Spotted Hotshot 25365 | -2/Protoforge | Spotted Decapitator 25365 | -2/Protoforge | Spotted Decapitator 25365 | -2/Protoforge | Spotted Decapitator 25365 | -2/Protoforge | Spotted Decapitator 25396 | -2/Protoforge | Spotted Hotshot 25396 | -2/Protoforge | Spotted Hotshot 25422 | -2/Protoforge | Destroyed Hotshot 25425 | -2/Protoforge | Identified Hvy. Regenerative Plating 25430 | -2/Protoforge | Destroyed Hotshot 25436 | -2/Protoforge | Destroyed Hotshot 25453 | -2/Protoforge | Destroyed Hotshot 25459 | -2/Protoforge | Destroyed Immortal 25490 | -2/Protoforge | Found Prototype Slashing Weapon 25490 | -2/Protoforge | Identified Cep. Deflector Sword 25493 | -2/Protoforge | Found Cep. Plasma Driver 25536 | -2/Protoforge | System corruption reached 10% 25632 | -2/Protoforge | Destroyed Immortal 25748 | -2/Protoforge | Spotted V211-f 25748 | -2/Protoforge | Spotted V942-w 25759 | -2/Protoforge | Warped through subspace 25774 | -2/Protoforge | Spotted Decapitator 25774 | -2/Protoforge | Spotted Decapitator 25774 | -2/Protoforge | Spotted Decapitator 25774 | -2/Protoforge | Spotted V755-y 25787 | -2/Protoforge | Core integrity fell below 50% 25794 | -2/Protoforge | Core integrity fell below 20% 25798 | -2/Protoforge | Destroyed by Superfortress with Enhanced Hardcell Cannon Last Messages --------------- 25780_ Slug penetrates Reinforced Barrier. 25783_ Exp. Core Analyzer destroyed. 25786_ Exp. Optical Array destroyed. 25786_ Critical hit (Blast). 25786_ Knocked back. 25786_ Penetrated by Railslug. 25786_ Cld. Nuclear Pulse Thruster destroyed. 25786_ Critical hit (Blast). 25786_ Knocked back. 25787_ System corrupted: Heat flow error (+191). 25787_ 0bP_NET: Lugger 432 inbound, all units not involved in other operations escort to target. 25787_ Exp. Targeting Computer severed. 25787_ Dropped Weapon Mount. 25789_ Deep Network Scanner severed. 25790_ Knocked back. 25790_ Railslug penetrates Reinforced Barrier. 25793_ Exp. Signal Interpreter destroyed. 25793_ Critical hit (Blast). Map ----- +----------------------------------------------------+ | #???????????# #?????????????????" | | # #####???????????# #???????????????? " | | # #???????????????# #??????????????? " | | # #???????????????# #?????????????? ####"""" | | # #???????????????# #?????????????####???????? | | # #???????????????# #????????????????????????? | | # ^ #???????????????# #????????????????????????? | | # #?????##????????# #????????????????????????? | | # #######"######### #????????????????????????? | | # #????????????????????????? | | # #????????????????????????? | | # #????????????????????????? | | ######## ! ########????????????????????????? | | ???????# #???????????????????????????????? | | ???????# #???????????????????????????????? | | ???????# #???????????????????????????????? | | ???????# #???????????????????????????????? | | ???????## ##???????????????????????????????? | | ######### #????????????????????????????????? | | ######### #########????????????????????????? | | #?""""""" " """"""#????????????????????????? | | # """" """" #????????????????????????? | | # "" "" #???######??#######??????? | | # T" c" #?###""""####"""""#??????? | | # c###;; ===;;;#" = ######## | | @ % | | FFF % %% | | FFF % %% %% | | FFF | | % | | | | # #####****#####////##### | | #"""""""""""""""""""""""#???#""""#???#""""#??## | | #"""""""""""""""""""""""#???######???######?## | | #??"""""""""""""""""""""#??????????????????## | | #########################??????????????????# | | ##########?????????????????????????????????# | | ???????????????????????????????????????????# | | ???????????????????????????????????????????# # | | ??????????????????############################# % | | ???????????????? | | ?????????????? "" " | | ????????????? " "" "" | | ??????????? " "" """ """" "" "" | | ????????????" """" """ " """ " | | ????????? ? "" " "" | | ???????? " ?" """ " | | ??????? "" "" """" " " | | ??????# ? " "" " " | | ??????# " ?" " """ " "" | +----------------------------------------------------+ Best States ------------- Heat Dissipation 189 Energy Generation 35 Energy Capacity 1450 Matter Stores 300 Matter Capacity 300 Sight Range 23 Robot Scan Range 18 Terrain Scan Density 10 ECM Strength 2 Jamming Range 16 Armor Coverage 600 Resistance: EM 25 Propulsion Shielding 66 Utility Shielding 90 Projectile Deflection 15 Weapon Cycling 20 Evasion (%) 79 Targeting Accuracy 32 Melee Accuracy 8 Core Analysis 8 Recoil Reduction 2 Salvage Targeting 4 Offensive Hacking 70 Defensive Hacking 14 Authchip Count 3 Item Schematics ----------------- Spk. Treads | -8/Scraptown | Extrapolated Mak. Leg | -8/Scraptown | Extrapolated Deep Structural Scanner | -8/Scraptown | Extrapolated 0b10 Decoder Chip [Generic] | -8/Scraptown | Extrapolated 0b10 Decoder Chip [Scout] | -8/Scraptown | Extrapolated 0b10 Decoder Chip [Skirmisher] | -8/Scraptown | Extrapolated Machine Rigger | -8/Scraptown | Extrapolated Lgt. Humpback | -8/Scraptown | Extrapolated Mak. Light Armor Plating | -8/Scraptown | Extrapolated Mak. Coolant Network | -8/Scraptown | Extrapolated Tactical Coordination Suite | -6/Factory | Extrapolated EM Shield | -6/Factory | Scanalyzed Bore Cannon | -6/Factory | Extrapolated Spk. Medium Treads | -6/Factory | Extrapolated Mak. Terrain Scanner | -6/Factory | Extrapolated Mak. Hover Unit | -6/Factory | Extrapolated Mak. Heavy Armor Plating | -6/Factory | Extrapolated Mak. Targeting Computer | -6/Factory | Extrapolated Mak. Medium Armor Plating | -6/Factory | Extrapolated Mak. Ablative Armor | -6/Factory | Extrapolated Beamcaster | -6/Factory | Extrapolated Mak. Shrapnel Gun | -6/Factory | Extrapolated Spk. Heavy Treads | -6/Waste | Extrapolated Mak. Axe | -6/Factory | Extrapolated 0b10 Decoder Chip [Looter] | -6/Factory | Extrapolated Mak. Core Shielding | -6/Factory | Extrapolated Mak. Power Source | -6/Factory | Extrapolated Energy Deflector | -6/Factory | Extrapolated Exp. Signal Interpreter | -6/Factory | Scanalyzed Combat Drone Bay | -6/Data Miner | Free Lgt. Regenerative Plating | -6/Data Miner | Free Enh. Flexi-carbon Leg | -6/Data Miner | Free Prc. Matter Filter | -6/Data Miner | Free Neutron Cannon | -6/Data Miner | Free Imp. Heavy Treads | -6/Data Miner | Free Adv. Transmission Jammer | -6/Data Miner | Free Adv. Datajack | -6/Data Miner | Free Shield Leg | -6/Data Miner | Free Imp. Point Defense System | -6/Data Miner | Free Adv. Remote Datajack | -6/Data Miner | Free Adv. Point Defense System | -6/Data Miner | Free Cld. Gravmag System | -5/Factory | Scanalyzed Imp. Hacking Suite | -5/Factory | Hacked Tri-rail Accelerator | -5/Factory | Hacked Weapon Mount | -5/Factory | Hacked Assault Drone Bay | -5/Zhirov | Free Exp. Heat Sink | -5/Zhirov | Free Exp. Optical Array | -5/Zhirov | Free Imp. Arc Thrower | -5/Zhirov | Free Exp. Utility Shielding | -4/Factory | Scanalyzed Cld. Nuclear Pulse Thruster | -4/Factory | Scanalyzed Adv. Reaction Control System | -4/Factory | Scanalyzed Cmb. Linear Gravjet | -2/Protoforge | Hacked Robot Schematics ------------------ G-34 Mercenary | -8/Recycling | Hacked R-10 Processor | -6/Data Miner | Free H-66 Slayer | -6/Data Miner | Free G-50 Soldier | -6/Data Miner | Free B-60 Warrior | -6/Data Miner | Free G-67 Veteran | -6/Data Miner | Free Fabricated ------------ Deep Structural Scanner | x1 | -6/Factory Deep Structural Scanner | x1 | -5/Factory Imp. Hacking Suite | x1 | -5/Factory | Authchip Tri-rail Accelerator | x1 | -5/Factory Weapon Mount | x2 | -4/Factory | Authchip Tri-rail Accelerator | x1 | -3/Research Weapon Mount | x2 | -2/Research | Authchip Weapon Mount | x2 | -2/Testing Tactical Coordination Suite | x1 | -2/Protoforge Tactical Coordination Suite | x1 | -2/Protoforge Cld. Nuclear Pulse Thruster | x1 | -2/Protoforge Exp. Reaction Control System | x1 | -2/Protoforge | Preloaded Repaired ---------- Gravmag Array | 71% | -6/Factory Tri-rail Accelerator | 38% | -5/Factory Hrd. Light Armor Plating | 31% | -4/Factory Tri-rail Accelerator | 70% | -4/Factory Mic. Fission Core | 65% | -4/Factory Tri-rail Accelerator | 27% | -3/Research Mic. Antimatter Reactor | 12% | -2/Testing Exp. Utility Shielding | 24% | -2/Testing Studied --------- Lgt. Fission Core | -6/Factory | Hacked Mic. Nuclear Core | -5/Factory | Hacked Mic. Fission Core | -5/Factory | Hacked Nuclear Pulse Array | -5/Factory | Hacked Field Propulsion Drive | -5/Factory | Hacked Fission Core | -5/Factory | Hacked Nuclear Pulse Thruster | -5/Factory | Hacked Impulse Thruster | -4/Factory | Hacked Impulse Thruster Array | -3/Research | Hacked Field Propulsion Array | -3/Research | Hacked Gamma Bomb Array | -2/Research | Hacked Fusion Bomb Launcher | -2/Research | Hacked Lgt. Ion Engine | -2/Testing | Hacked Mic. Antimatter Reactor | -2/Protoforge | Hacked Alien Tech Used ----------------- Integrated Dissipator Transdimensional Reconstructor Core Regenerator Achievements -------------- Anyone Home? Hulk Smash Inventory Pressure Longdome?! Scientist At Large Super-what Now? UFD MVP We Are One Challenges ------------ None Game ------ Seed SingularityResetFacilitator Manual? 0 Play Time 07:21:45 Cumulative 227.6 hours Start 2025.11.18 @ 17:09:00 End 2025.11.19 @ 00:43:36 Sessions 1 Manual Loads 0 Difficulty Rogue Special Mode None Game No. 174 Rogue 174 Adventurer 0 Explorer 0 Win Type - Total 10 Types 6/0/2/1/0/0/0/1/0/0 Lore% 57 Gallery% 70 Achievement% 63 Wizard Run 0 Options --------- Layout 2 ASCII 0 Keyboard 1 Movement Arrows Keybinds 0 Fullscreen 1 Font 32/Tamsyn Map View 50x44 Zoom Use 0% Tactical HUD 1 Map Filters NONE Filters NONE Steam 1 RUN: 5afcfe87-990c-4241-8ee5-0ab74d87e67c